Workbook

Sheet דוגמאות מרצה שאלות 1-6
I1: לוחות סילוקין
E3: שאלה 1
V4: שפיצר
I7: נתונים: | V7: נתונים:
I8: הלוואה | J8: 600,000 | K8: PV | V8: הלוואה | W8: 1,000 | X8: PV
I9: חודשים | J9: 30 | K9: n | V9: מספר תקופות | W9: 5 | X9: n
I10: ריבית | J10: 0.30% | K10: r | V10: ריבית | W10: 10.00% | X10: r
J11: =PMT(J10,J9,-J8,,) -> ₪ 20,943.46 | K11: PMT | W11: =PMT(W10,W9,-W8,,) -> ₪ 263.80 | X11: PMT
I12: מספר תקבול | J12: יתרת הקרן בתחילת תקופה | K12: תשלום ע"ח קרן | L12: תשלום ע"ח ריבית | M12: סך הכל תשלום | N12: יתרת הקרן בסוף התקופה | V12: מספר תקבול | W12: יתרת הקרן בתחילת תקופה | X12: תשלום ע"ח קרן | Y12: תשלום ע"ח ריבית | Z12: סך הכל תשלום | AA12: יתרת הקרן בסוף התקופה
I13: 1 | J13: =J8 -> ₪ 600,000.00 | K13: =M13-L13 -> ₪ 19,143.46 | L13: =$J$10*J13 -> ₪ 1,800.00 | M13: =$J$11 -> ₪ 20,943.46 | N13: =J13-K13 -> ₪ 580,856.54 | V13: 1 | W13: =W8 -> ₪ 1,000.00 | X13: =Z13-Y13 -> ₪ 163.80 | Y13: =$W$10*W13 -> ₪ 100.00 | Z13: =$W$11 -> ₪ 263.80 | AA13: =W13-X13 -> ₪ 836.20
I14: 2 | J14: =N13 -> ₪ 580,856.54 | K14: =M14-L14 -> ₪ 19,200.89 | L14: =$J$10*J14 -> ₪ 1,742.57 | M14: =$J$11 -> ₪ 20,943.46 | N14: =J14-K14 -> ₪ 561,655.64 | V14: 2 | W14: =AA13 -> ₪ 836.20 | X14: =Z14-Y14 -> ₪ 180.18 | Y14: =$W$10*W14 -> ₪ 83.62 | Z14: =$W$11 -> ₪ 263.80 | AA14: =W14-X14 -> ₪ 656.03
I15: 3 | J15: =N14 -> ₪ 561,655.64 | K15: ₪ 19,258.50 | L15: ₪ 1,684.97 | M15: ₪ 20,943.46 | N15: ₪ 542,397.15 | V15: 3 | W15: =AA14 -> ₪ 656.03 | X15: ₪ 198.19 | Y15: ₪ 65.60 | Z15: ₪ 263.80 | AA15: ₪ 457.83
I16: 4 | J16: ₪ 542,397.15 | K16: ₪ 19,316.27 | L16: ₪ 1,627.19 | M16: ₪ 20,943.46 | N16: ₪ 523,080.88 | V16: 4 | W16: ₪ 457.83 | X16: ₪ 218.01 | Y16: ₪ 45.78 | Z16: ₪ 263.80 | AA16: ₪ 239.82
I17: 5 | J17: ₪ 523,080.88 | K17: ₪ 19,374.22 | L17: ₪ 1,569.24 | M17: ₪ 20,943.46 | N17: ₪ 503,706.66 | V17: 5 | W17: ₪ 239.82 | X17: ₪ 239.82 | Y17: ₪ 23.98 | Z17: ₪ 263.80 | AA17: ₪ -0.00
I18: 6 | J18: ₪ 503,706.66 | K18: =M18-L18 -> ₪ 19,432.34 | L18: ₪ 1,511.12 | M18: ₪ 20,943.46 | N18: ₪ 484,274.31
I19: 7 | J19: ₪ 484,274.31 | K19: ₪ 19,490.64 | L19: ₪ 1,452.82 | M19: ₪ 20,943.46 | N19: ₪ 464,783.67
I20: 8 | J20: ₪ 464,783.67 | K20: ₪ 19,549.11 | L20: ₪ 1,394.35 | M20: ₪ 20,943.46 | N20: ₪ 445,234.56
I21: 9 | J21: ₪ 445,234.56 | K21: ₪ 19,607.76 | L21: ₪ 1,335.70 | M21: ₪ 20,943.46 | N21: ₪ 425,626.80 | V21: לוח סילוקין רגיל
I22: 10 | J22: ₪ 425,626.80 | K22: ₪ 19,666.58 | L22: ₪ 1,276.88 | M22: ₪ 20,943.46 | N22: ₪ 405,960.22
I23: 11 | J23: ₪ 405,960.22 | K23: ₪ 19,725.58 | L23: ₪ 1,217.88 | M23: ₪ 20,943.46 | N23: ₪ 386,234.64
I24: 12 | J24: ₪ 386,234.64 | K24: ₪ 19,784.76 | L24: ₪ 1,158.70 | M24: ₪ 20,943.46 | N24: ₪ 366,449.88 | V24: נתונים:
I25: 13 | J25: ₪ 366,449.88 | K25: ₪ 19,844.11 | L25: ₪ 1,099.35 | M25: ₪ 20,943.46 | N25: ₪ 346,605.76 | V25: הלוואה | W25: 1,000 | X25: PV
I26: 14 | J26: ₪ 346,605.76 | K26: ₪ 19,903.65 | L26: ₪ 1,039.82 | M26: ₪ 20,943.46 | N26: ₪ 326,702.12 | V26: מספר תקופות | W26: 5 | X26: n
I27: 15 | J27: ₪ 326,702.12 | K27: ₪ 19,963.36 | L27: ₪ 980.11 | M27: ₪ 20,943.46 | N27: ₪ 306,738.76 | V27: ריבית | W27: 10.00% | X27: r
I28: 16 | J28: ₪ 306,738.76 | K28: ₪ 20,023.25 | L28: ₪ 920.22 | M28: ₪ 20,943.46 | N28: ₪ 286,715.51 | W28: =W25/W26 -> 200 | X28: קרן קבועה
I29: 17 | J29: ₪ 286,715.51 | K29: ₪ 20,083.32 | L29: ₪ 860.15 | M29: ₪ 20,943.46 | N29: ₪ 266,632.20 | V29: מספר תקבול | W29: יתרת הקרן בתחילת תקופה | X29: תשלום ע"ח קרן | Y29: תשלום ע"ח ריבית | Z29: סך הכל תשלום | AA29: יתרת הקרן בסוף התקופה
I30: 18 | J30: ₪ 266,632.20 | K30: ₪ 20,143.57 | L30: ₪ 799.90 | M30: ₪ 20,943.46 | N30: ₪ 246,488.63 | V30: 1 | W30: =W25 -> ₪ 1,000.00 | X30: =$W$28 -> ₪ 200.00 | Y30: =$W$27*W30 -> ₪ 100.00 | Z30: =X30+Y30 -> ₪ 300.00 | AA30: =W30-X30 -> ₪ 800.00
I31: 19 | J31: ₪ 246,488.63 | K31: ₪ 20,204.00 | L31: ₪ 739.47 | M31: ₪ 20,943.46 | N31: ₪ 226,284.63 | V31: 2 | W31: =AA30 -> ₪ 800.00 | X31: =$W$28 -> ₪ 200.00 | Y31: =$W$27*W31 -> ₪ 80.00 | Z31: =X31+Y31 -> ₪ 280.00 | AA31: =W31-X31 -> ₪ 600.00
I32: 20 | J32: ₪ 226,284.63 | K32: ₪ 20,264.61 | L32: ₪ 678.85 | M32: ₪ 20,943.46 | N32: ₪ 206,020.03 | V32: 3 | W32: =AA31 -> ₪ 600.00 | X32: ₪ 200.00 | Y32: ₪ 60.00 | Z32: ₪ 260.00 | AA32: ₪ 400.00
I33: 21 | J33: ₪ 206,020.03 | K33: ₪ 20,325.40 | L33: ₪ 618.06 | M33: ₪ 20,943.46 | N33: ₪ 185,694.62 | V33: 4 | W33: ₪ 400.00 | X33: ₪ 200.00 | Y33: ₪ 40.00 | Z33: ₪ 240.00 | AA33: ₪ 200.00
I34: 22 | J34: ₪ 185,694.62 | K34: ₪ 20,386.38 | L34: ₪ 557.08 | M34: ₪ 20,943.46 | N34: ₪ 165,308.24 | V34: 5 | W34: ₪ 200.00 | X34: ₪ 200.00 | Y34: ₪ 20.00 | Z34: ₪ 220.00 | AA34: ₪ 0.00
I35: 23 | J35: ₪ 165,308.24 | K35: ₪ 20,447.54 | L35: ₪ 495.92 | M35: ₪ 20,943.46 | N35: ₪ 144,860.71
I36: 24 | J36: ₪ 144,860.71 | K36: ₪ 20,508.88 | L36: ₪ 434.58 | M36: ₪ 20,943.46 | N36: ₪ 124,351.82
I37: 25 | J37: ₪ 124,351.82 | K37: ₪ 20,570.41 | L37: ₪ 373.06 | M37: ₪ 20,943.46 | N37: ₪ 103,781.42
I38: 26 | J38: ₪ 103,781.42 | K38: ₪ 20,632.12 | L38: ₪ 311.34 | M38: ₪ 20,943.46 | N38: ₪ 83,149.30
I39: 27 | J39: ₪ 83,149.30 | K39: ₪ 20,694.02 | L39: ₪ 249.45 | M39: ₪ 20,943.46 | N39: ₪ 62,455.28
I40: 28 | J40: ₪ 62,455.28 | K40: ₪ 20,756.10 | L40: ₪ 187.37 | M40: ₪ 20,943.46 | N40: ₪ 41,699.19
I41: 29 | J41: ₪ 41,699.19 | K41: ₪ 20,818.37 | L41: ₪ 125.10 | M41: ₪ 20,943.46 | N41: ₪ 20,880.82
I42: 30 | J42: ₪ 20,880.82 | K42: ₪ 20,880.82 | L42: ₪ 62.64 | M42: ₪ 20,943.46 | N42: ₪ -0.00
E47: שאלה 2
I56: נתונים:
I57: הלוואה | J57: 200,000 | K57: PV
I58: תקופות | J58: 5 | K58: n
I59: ריבית | J59: 4.00% | K59: r
J60: =PMT(J59,J58,-J57,,) -> ₪ 44,925.42 | K60: PMT
I61: מספר תקבול | J61: יתרת הקרן בתחילת תקופה | K61: תשלום ע"ח קרן | L61: תשלום ע"ח ריבית | M61: סך הכל תשלום | N61: יתרת הקרן בסוף התקופה
I62: 1 | J62: =J57 -> ₪ 200,000.00 | K62: =M62-L62 -> ₪ 36,925.42 | L62: =$J$59*J62 -> ₪ 8,000.00 | M62: =$J$60 -> ₪ 44,925.42 | N62: =J62-K62 -> ₪ 163,074.58
I63: 2 | J63: =N62 -> ₪ 163,074.58 | K63: =M63-L63 -> ₪ 38,402.44 | L63: =$J$59*J63 -> ₪ 6,522.98 | M63: =$J$60 -> ₪ 44,925.42 | N63: =J63-K63 -> ₪ 124,672.14
I64: 3 | J64: =N63 -> ₪ 124,672.14 | K64: ₪ 39,938.54 | L64: ₪ 4,986.89 | M64: ₪ 44,925.42 | N64: ₪ 84,733.60
I65: 4 | J65: ₪ 84,733.60 | K65: ₪ 41,536.08 | L65: ₪ 3,389.34 | M65: ₪ 44,925.42 | N65: ₪ 43,197.52
I66: 5 | J66: ₪ 43,197.52 | K66: ₪ 43,197.52 | L66: ₪ 1,727.90 | M66: ₪ 44,925.42 | N66: ₪ 0.00
E76: שאלה 3
I85: נתונים:
I86: הלוואה | J86: 200,000 | K86: PV | M86: 6.00%
I87: חודשים | J87: =5*12 -> 60 | K87: n | M87: 12
I88: ריבית | J88: =M86/M87 -> 0.50% | K88: r
J89: =PMT(J88,J87,-J86,,) -> ₪ 3,866.56 | K89: PMT
I90: מספר תקבול | J90: יתרת הקרן בתחילת תקופה | K90: תשלום ע"ח קרן | L90: תשלום ע"ח ריבית | M90: סך הכל תשלום | N90: יתרת הקרן בסוף התקופה
I91: 1 | J91: =J86 -> ₪ 200,000.00 | K91: =M91-L91 -> ₪ 2,866.56 | L91: =$J$88*J91 -> ₪ 1,000.00 | M91: =$J$89 -> ₪ 3,866.56 | N91: =J91-K91 -> ₪ 197,133.44
I92: 2 | J92: =N91 -> ₪ 197,133.44 | K92: =M92-L92 -> ₪ 2,880.89 | L92: =$J$88*J92 -> ₪ 985.67 | M92: =$J$89 -> ₪ 3,866.56 | N92: =J92-K92 -> ₪ 194,252.55
I93: 3 | J93: =N92 -> ₪ 194,252.55 | K93: ₪ 2,895.30 | L93: ₪ 971.26 | M93: ₪ 3,866.56 | N93: ₪ 191,357.25
I94: 4 | J94: ₪ 191,357.25 | K94: ₪ 2,909.77 | L94: ₪ 956.79 | M94: ₪ 3,866.56 | N94: ₪ 188,447.47
I95: 5 | J95: ₪ 188,447.47 | K95: ₪ 2,924.32 | L95: ₪ 942.24 | M95: ₪ 3,866.56 | N95: ₪ 185,523.15
I96: 6 | J96: ₪ 185,523.15 | K96: ₪ 2,938.94 | L96: ₪ 927.62 | M96: ₪ 3,866.56 | N96: ₪ 182,584.21
I97: 7 | J97: ₪ 182,584.21 | K97: ₪ 2,953.64 | L97: ₪ 912.92 | M97: ₪ 3,866.56 | N97: ₪ 179,630.57
I98: 8 | J98: ₪ 179,630.57 | K98: ₪ 2,968.41 | L98: ₪ 898.15 | M98: ₪ 3,866.56 | N98: ₪ 176,662.16
I99: 9 | J99: ₪ 176,662.16 | K99: ₪ 2,983.25 | L99: ₪ 883.31 | M99: ₪ 3,866.56 | N99: ₪ 173,678.91
I100: 10 | J100: ₪ 173,678.91 | K100: ₪ 2,998.17 | L100: ₪ 868.39 | M100: ₪ 3,866.56 | N100: ₪ 170,680.75
I101: 11 | J101: ₪ 170,680.75 | K101: ₪ 3,013.16 | L101: ₪ 853.40 | M101: ₪ 3,866.56 | N101: ₪ 167,667.59
I102: 12 | J102: ₪ 167,667.59 | K102: ₪ 3,028.22 | L102: ₪ 838.34 | M102: ₪ 3,866.56 | N102: ₪ 164,639.37
I103: 13 | J103: ₪ 164,639.37 | K103: ₪ 3,043.36 | L103: ₪ 823.20 | M103: ₪ 3,866.56 | N103: ₪ 161,596.00
I104: 14 | J104: ₪ 161,596.00 | K104: ₪ 3,058.58 | L104: ₪ 807.98 | M104: ₪ 3,866.56 | N104: ₪ 158,537.42
I105: 15 | J105: ₪ 158,537.42 | K105: ₪ 3,073.87 | L105: ₪ 792.69 | M105: ₪ 3,866.56 | N105: ₪ 155,463.55
I106: 16 | J106: ₪ 155,463.55 | K106: ₪ 3,089.24 | L106: ₪ 777.32 | M106: ₪ 3,866.56 | N106: ₪ 152,374.31
I107: 17 | J107: ₪ 152,374.31 | K107: ₪ 3,104.69 | L107: ₪ 761.87 | M107: ₪ 3,866.56 | N107: ₪ 149,269.62
I108: 18 | J108: ₪ 149,269.62 | K108: ₪ 3,120.21 | L108: ₪ 746.35 | M108: ₪ 3,866.56 | N108: ₪ 146,149.41
I109: 19 | J109: ₪ 146,149.41 | K109: ₪ 3,135.81 | L109: ₪ 730.75 | M109: ₪ 3,866.56 | N109: ₪ 143,013.59
I110: 20 | J110: ₪ 143,013.59 | K110: ₪ 3,151.49 | L110: ₪ 715.07 | M110: ₪ 3,866.56 | N110: ₪ 139,862.10
I111: 21 | J111: ₪ 139,862.10 | K111: ₪ 3,167.25 | L111: ₪ 699.31 | M111: ₪ 3,866.56 | N111: ₪ 136,694.85
I112: 22 | J112: ₪ 136,694.85 | K112: ₪ 3,183.09 | L112: ₪ 683.47 | M112: ₪ 3,866.56 | N112: ₪ 133,511.76
I113: 23 | J113: ₪ 133,511.76 | K113: ₪ 3,199.00 | L113: ₪ 667.56 | M113: ₪ 3,866.56 | N113: ₪ 130,312.76
I114: 24 | J114: ₪ 130,312.76 | K114: ₪ 3,215.00 | L114: ₪ 651.56 | M114: ₪ 3,866.56 | N114: ₪ 127,097.77
I115: 25 | J115: ₪ 127,097.77 | K115: ₪ 3,231.07 | L115: ₪ 635.49 | M115: ₪ 3,866.56 | N115: ₪ 123,866.70
I116: 26 | J116: ₪ 123,866.70 | K116: ₪ 3,247.23 | L116: ₪ 619.33 | M116: ₪ 3,866.56 | N116: ₪ 120,619.47
I117: 27 | J117: ₪ 120,619.47 | K117: ₪ 3,263.46 | L117: ₪ 603.10 | M117: ₪ 3,866.56 | N117: ₪ 117,356.01
I118: 28 | J118: ₪ 117,356.01 | K118: ₪ 3,279.78 | L118: ₪ 586.78 | M118: ₪ 3,866.56 | N118: ₪ 114,076.23
I119: 29 | J119: ₪ 114,076.23 | K119: ₪ 3,296.18 | L119: ₪ 570.38 | M119: ₪ 3,866.56 | N119: ₪ 110,780.05
I120: 30 | J120: ₪ 110,780.05 | K120: ₪ 3,312.66 | L120: ₪ 553.90 | M120: ₪ 3,866.56 | N120: ₪ 107,467.39
I121: 31 | J121: ₪ 107,467.39 | K121: ₪ 3,329.22 | L121: ₪ 537.34 | M121: ₪ 3,866.56 | N121: ₪ 104,138.16
I122: 32 | J122: ₪ 104,138.16 | K122: ₪ 3,345.87 | L122: ₪ 520.69 | M122: ₪ 3,866.56 | N122: ₪ 100,792.29
I123: 33 | J123: ₪ 100,792.29 | K123: ₪ 3,362.60 | L123: ₪ 503.96 | M123: ₪ 3,866.56 | N123: ₪ 97,429.69
I124: 34 | J124: ₪ 97,429.69 | K124: ₪ 3,379.41 | L124: ₪ 487.15 | M124: ₪ 3,866.56 | N124: ₪ 94,050.28
I125: 35 | J125: ₪ 94,050.28 | K125: ₪ 3,396.31 | L125: ₪ 470.25 | M125: ₪ 3,866.56 | N125: ₪ 90,653.97
I126: 36 | J126: ₪ 90,653.97 | K126: ₪ 3,413.29 | L126: ₪ 453.27 | M126: ₪ 3,866.56 | N126: ₪ 87,240.68
I127: 37 | J127: ₪ 87,240.68 | K127: ₪ 3,430.36 | L127: ₪ 436.20 | M127: ₪ 3,866.56 | N127: ₪ 83,810.33
I128: 38 | J128: ₪ 83,810.33 | K128: ₪ 3,447.51 | L128: ₪ 419.05 | M128: ₪ 3,866.56 | N128: ₪ 80,362.82
I129: 39 | J129: ₪ 80,362.82 | K129: ₪ 3,464.75 | L129: ₪ 401.81 | M129: ₪ 3,866.56 | N129: ₪ 76,898.07
I130: 40 | J130: ₪ 76,898.07 | K130: ₪ 3,482.07 | L130: ₪ 384.49 | M130: ₪ 3,866.56 | N130: ₪ 73,416.00
I131: 41 | J131: ₪ 73,416.00 | K131: ₪ 3,499.48 | L131: ₪ 367.08 | M131: ₪ 3,866.56 | N131: ₪ 69,916.52
I132: 42 | J132: ₪ 69,916.52 | K132: ₪ 3,516.98 | L132: ₪ 349.58 | M132: ₪ 3,866.56 | N132: ₪ 66,399.54
I133: 43 | J133: ₪ 66,399.54 | K133: ₪ 3,534.56 | L133: ₪ 332.00 | M133: ₪ 3,866.56 | N133: ₪ 62,864.98
I134: 44 | J134: ₪ 62,864.98 | K134: ₪ 3,552.24 | L134: ₪ 314.32 | M134: ₪ 3,866.56 | N134: ₪ 59,312.75
I135: 45 | J135: ₪ 59,312.75 | K135: ₪ 3,570.00 | L135: ₪ 296.56 | M135: ₪ 3,866.56 | N135: ₪ 55,742.75
I136: 46 | J136: ₪ 55,742.75 | K136: ₪ 3,587.85 | L136: ₪ 278.71 | M136: ₪ 3,866.56 | N136: ₪ 52,154.90
I137: 47 | J137: ₪ 52,154.90 | K137: ₪ 3,605.79 | L137: ₪ 260.77 | M137: ₪ 3,866.56 | N137: ₪ 48,549.12
I138: 48 | J138: ₪ 48,549.12 | K138: ₪ 3,623.81 | L138: ₪ 242.75 | M138: ₪ 3,866.56 | N138: ₪ 44,925.30
I139: 49 | J139: ₪ 44,925.30 | K139: ₪ 3,641.93 | L139: ₪ 224.63 | M139: ₪ 3,866.56 | N139: ₪ 41,283.37
I140: 50 | J140: ₪ 41,283.37 | K140: ₪ 3,660.14 | L140: ₪ 206.42 | M140: ₪ 3,866.56 | N140: ₪ 37,623.22
I141: 51 | J141: ₪ 37,623.22 | K141: ₪ 3,678.44 | L141: ₪ 188.12 | M141: ₪ 3,866.56 | N141: ₪ 33,944.78
I142: 52 | J142: ₪ 33,944.78 | K142: ₪ 3,696.84 | L142: ₪ 169.72 | M142: ₪ 3,866.56 | N142: ₪ 30,247.94
I143: 53 | J143: ₪ 30,247.94 | K143: ₪ 3,715.32 | L143: ₪ 151.24 | M143: ₪ 3,866.56 | N143: ₪ 26,532.62
I144: 54 | J144: ₪ 26,532.62 | K144: ₪ 3,733.90 | L144: ₪ 132.66 | M144: ₪ 3,866.56 | N144: ₪ 22,798.73
I145: 55 | J145: ₪ 22,798.73 | K145: ₪ 3,752.57 | L145: ₪ 113.99 | M145: ₪ 3,866.56 | N145: ₪ 19,046.16
I146: 56 | J146: ₪ 19,046.16 | K146: ₪ 3,771.33 | L146: ₪ 95.23 | M146: ₪ 3,866.56 | N146: ₪ 15,274.83
I147: 57 | J147: ₪ 15,274.83 | K147: ₪ 3,790.19 | L147: ₪ 76.37 | M147: ₪ 3,866.56 | N147: ₪ 11,484.64
I148: 58 | J148: ₪ 11,484.64 | K148: ₪ 3,809.14 | L148: ₪ 57.42 | M148: ₪ 3,866.56 | N148: ₪ 7,675.51
I149: 59 | J149: ₪ 7,675.51 | K149: ₪ 3,828.18 | L149: ₪ 38.38 | M149: ₪ 3,866.56 | N149: ₪ 3,847.32
I150: 60 | J150: ₪ 3,847.32 | K150: ₪ 3,847.32 | L150: ₪ 19.24 | M150: ₪ 3,866.56 | N150: ₪ -0.00
E155: שאלה 4 | S155: שאלה 3 - עם לוח שפיצר:
I160: נתונים:
I161: הלוואה | J161: 50,000 | K161: PV
I162: מספר תקופות | J162: 10 | K162: n | S162: נתונים:
I163: ריבית | J163: 5.00% | K163: r | S163: הלוואה | T163: 100,000 | U163: PV
J164: =J161/J162 -> 5000 | K164: קרן קבועה | S164: שנים | T164: 5 | U164: n
I165: מספר תקבול | J165: יתרת הקרן בתחילת תקופה | K165: תשלום ע"ח קרן | L165: תשלום ע"ח ריבית | M165: סך הכל תשלום | N165: יתרת הקרן בסוף התקופה | S165: ריבית | T165: 10.00% | U165: r
I166: 1 | J166: =J161 -> ₪ 50,000.00 | K166: =$J$164 -> ₪ 5,000.00 | L166: =$J$163*J166 -> ₪ 2,500.00 | M166: =K166+L166 -> ₪ 7,500.00 | N166: =J166-K166 -> ₪ 45,000.00
I167: 2 | J167: =N166 -> ₪ 45,000.00 | K167: =$J$164 -> ₪ 5,000.00 | L167: =$J$163*J167 -> ₪ 2,250.00 | M167: =K167+L167 -> ₪ 7,250.00 | N167: =J167-K167 -> ₪ 40,000.00 | S167: מספר תקבול | T167: יתרת הקרן בתחילת תקופה | U167: תשלום ע"ח קרן | V167: תשלום ע"ח ריבית | W167: סך הכל תשלום | X167: יתרת הקרן בסוף התקופה
I168: 3 | J168: =N167 -> ₪ 40,000.00 | K168: ₪ 5,000.00 | L168: ₪ 2,000.00 | M168: ₪ 7,000.00 | N168: ₪ 35,000.00 | S168: 1 | T168: =T163 -> 100,000.00 | U168: =PPMT($T$165,S168,$T$164,$T$163,0) -> (16,379.75) | V168: =IPMT($T$165,S168,$T$164,$T$163,0) -> (10,000.00) | W168: =PMT($T$165,$T$164,$T$163) -> (26,379.75) | X168: =T168+U168 -> 83,620.25
I169: 4 | J169: ₪ 35,000.00 | K169: ₪ 5,000.00 | L169: ₪ 1,750.00 | M169: ₪ 6,750.00 | N169: ₪ 30,000.00 | S169: 2 | T169: =X168 -> 83,620.25 | U169: =PPMT($T$165,S169,$T$164,$T$163,0) -> (18,017.72) | V169: =IPMT($T$165,S169,$T$164,$T$163,0) -> (8,362.03) | W169: =PMT($T$165,$T$164,$T$163) -> (26,379.75) | X169: =T169+U169 -> 65,602.53
I170: 5 | J170: ₪ 30,000.00 | K170: ₪ 5,000.00 | L170: ₪ 1,500.00 | M170: ₪ 6,500.00 | N170: ₪ 25,000.00 | S170: 3 | T170: =X169 -> 65,602.53 | U170: (19,819.50) | V170: (6,560.25) | W170: (26,379.75) | X170: 45,783.03
I171: 6 | J171: ₪ 25,000.00 | K171: ₪ 5,000.00 | L171: ₪ 1,250.00 | M171: ₪ 6,250.00 | N171: ₪ 20,000.00 | S171: 4 | T171: 45,783.03 | U171: (21,801.44) | V171: (4,578.30) | W171: (26,379.75) | X171: 23,981.59
I172: 7 | J172: ₪ 20,000.00 | K172: ₪ 5,000.00 | L172: ₪ 1,000.00 | M172: ₪ 6,000.00 | N172: ₪ 15,000.00 | S172: 5 | T172: 23,981.59 | U172: (23,981.59) | V172: (2,398.16) | W172: (26,379.75) | X172: 0.00
I173: 8 | J173: ₪ 15,000.00 | K173: ₪ 5,000.00 | L173: ₪ 750.00 | M173: ₪ 5,750.00 | N173: ₪ 10,000.00
I174: 9 | J174: ₪ 10,000.00 | K174: ₪ 5,000.00 | L174: ₪ 500.00 | M174: ₪ 5,500.00 | N174: ₪ 5,000.00
I175: 10 | J175: ₪ 5,000.00 | K175: ₪ 5,000.00 | L175: ₪ 250.00 | M175: ₪ 5,250.00 | N175: ₪ 0.00
E185: שאלה 5
I191: נתונים:
I192: הלוואה | J192: 80,000 | K192: PV
I193: מספר תקופות | J193: 5 | K193: n
I194: ריבית | J194: 5.00% | K194: r
I196: מספר תקבול | J196: יתרת הקרן בתחילת תקופה | K196: תשלום ע"ח קרן | L196: תשלום ע"ח ריבית | M196: סך הכל תשלום | N196: יתרת הקרן בסוף התקופה
I197: 1 | J197: =J192 -> ₪ 80,000.00 | K197: ₪ 0.00 | L197: =$J$194*J197 -> ₪ 4,000.00 | M197: =K197+L197 -> ₪ 4,000.00 | N197: =J197-K197 -> ₪ 80,000.00
I198: 2 | J198: =N197 -> ₪ 80,000.00 | K198: ₪ 0.00 | L198: =$J$194*J198 -> ₪ 4,000.00 | M198: =K198+L198 -> ₪ 4,000.00 | N198: =J198-K198 -> ₪ 80,000.00
I199: 3 | J199: =N198 -> ₪ 80,000.00 | K199: ₪ 0.00 | L199: ₪ 4,000.00 | M199: ₪ 4,000.00 | N199: ₪ 80,000.00
I200: 4 | J200: ₪ 80,000.00 | K200: ₪ 0.00 | L200: ₪ 4,000.00 | M200: ₪ 4,000.00 | N200: ₪ 80,000.00
I201: 5 | J201: ₪ 80,000.00 | K201: =J192 -> ₪ 80,000.00 | L201: ₪ 4,000.00 | M201: ₪ 84,000.00 | N201: ₪ 0.00
E206: שאלה 6
I211: נתונים:
I212: הלוואה | J212: 20,000 | K212: PV
I213: מספר תקופות | J213: 5 | K213: n
I214: ריבית | J214: 4.00% | K214: r
I216: מספר תקבול | J216: יתרת הקרן בתחילת תקופה | K216: תשלום ע"ח קרן | L216: תשלום ע"ח ריבית | M216: סך הכל תשלום | N216: יתרת הקרן בסוף התקופה
I217: 1 | J217: =J212 -> ₪ 20,000.00 | K217: ₪ 0.00 | L217: ₪ 0.00 | M217: =K217+L217 -> ₪ 0.00 | N217: =FV($J$214,I217,,-$J$212) -> ₪ 20,800.00
I218: 2 | J218: =N217 -> ₪ 20,800.00 | K218: ₪ 0.00 | L218: ₪ 0.00 | M218: =K218+L218 -> ₪ 0.00 | N218: =FV($J$214,I218,,-$J$212) -> ₪ 21,632.00
I219: 3 | J219: =N218 -> ₪ 21,632.00 | K219: ₪ 0.00 | L219: ₪ 0.00 | M219: ₪ 0.00 | N219: ₪ 22,497.28
I220: 4 | J220: ₪ 22,497.28 | K220: ₪ 0.00 | L220: ₪ 0.00 | M220: ₪ 0.00 | N220: ₪ 23,397.17
I221: 5 | J221: ₪ 23,397.17 | K221: =J212 -> ₪ 20,000.00 | L221: =N221-K221 -> ₪ 4,333.06 | M221: ₪ 24,333.06 | N221: =FV($J$214,I221,,-$J$212) -> ₪ 24,333.06

Sheet תרגול עצמי שאלות 7-11
H4: שאלה 7
K7: נתונים:
K8: הלוואה | L8: 180,000 | M8: PV | O8: 12.55% | P8: r
K9: תקופות | L9: =3*4 -> 12 | M9: n | O9: =(1+O8)^0.25-1 -> 0.02999798439 | P9: רבעון
K10: ריבית | L10: =O9 -> 3.00% | M10: r
L11: =PMT(L10,L9,-L8,,) -> ₪ 18,082.96 | M11: PMT
K12: מספר תקבול | L12: יתרת הקרן בתחילת תקופה | M12: תשלום ע"ח קרן | N12: תשלום ע"ח ריבית | O12: סך הכל תשלום | P12: יתרת הקרן בסוף התקופה
K13: 1 | L13: =L8 -> ₪ 180,000.00 | M13: =O13-N13 -> ₪ 12,683.32 | N13: =$L$10*L13 -> ₪ 5,399.64 | O13: =$L$11 -> ₪ 18,082.96 | P13: =L13-M13 -> ₪ 167,316.68
K14: 2 | L14: =P13 -> ₪ 167,316.68 | M14: =O14-N14 -> ₪ 13,063.79 | N14: =$L$10*L14 -> ₪ 5,019.16 | O14: =$L$11 -> ₪ 18,082.96 | P14: =L14-M14 -> ₪ 154,252.88
K15: 3 | L15: =P14 -> ₪ 154,252.88 | M15: ₪ 13,455.68 | N15: ₪ 4,627.28 | O15: ₪ 18,082.96 | P15: ₪ 140,797.20
K16: 4 | L16: ₪ 140,797.20 | M16: ₪ 13,859.33 | N16: ₪ 4,223.63 | O16: ₪ 18,082.96 | P16: ₪ 126,937.88
K17: 5 | L17: ₪ 126,937.88 | M17: ₪ 14,275.08 | N17: ₪ 3,807.88 | O17: ₪ 18,082.96 | P17: ₪ 112,662.80
K18: 6 | L18: ₪ 112,662.80 | M18: ₪ 14,703.30 | N18: ₪ 3,379.66 | O18: ₪ 18,082.96 | P18: ₪ 97,959.50
K19: 7 | L19: ₪ 97,959.50 | M19: ₪ 15,144.37 | N19: ₪ 2,938.59 | O19: ₪ 18,082.96 | P19: ₪ 82,815.13
K20: 8 | L20: ₪ 82,815.13 | M20: ₪ 15,598.67 | N20: ₪ 2,484.29 | O20: ₪ 18,082.96 | P20: ₪ 67,216.46
K21: 9 | L21: ₪ 67,216.46 | M21: ₪ 16,066.60 | N21: ₪ 2,016.36 | O21: ₪ 18,082.96 | P21: ₪ 51,149.86
K22: 10 | L22: ₪ 51,149.86 | M22: ₪ 16,548.57 | N22: ₪ 1,534.39 | O22: ₪ 18,082.96 | P22: ₪ 34,601.29
K23: 11 | L23: ₪ 34,601.29 | M23: ₪ 17,044.99 | N23: ₪ 1,037.97 | O23: ₪ 18,082.96 | P23: ₪ 17,556.30
K24: 12 | L24: ₪ 17,556.30 | M24: ₪ 17,556.30 | N24: ₪ 526.65 | O24: ₪ 18,082.96 | P24: ₪ -0.00
H30: שאלה 8
K38: נתונים:
K39: הלוואה | L39: 1,000,000 | M39: PV
K40: חודשים | L40: =5*12 -> 60 | M40: n
K41: ריבית | L41: 0.30% | M41: r
L42: =PMT(L41,L40,-L39,,) -> ₪ 18,236.56 | M42: PMT
K43: מספר תקבול | L43: יתרת הקרן בתחילת תקופה | M43: תשלום ע"ח קרן | N43: תשלום ע"ח ריבית | O43: סך הכל תשלום | P43: יתרת הקרן בסוף התקופה
K44: 1 | L44: =L39 -> ₪ 1,000,000.00 | M44: =O44-N44 -> ₪ 15,236.56 | N44: =$L$41*L44 -> ₪ 3,000.00 | O44: =$L$42 -> ₪ 18,236.56 | P44: =L44-M44 -> ₪ 984,763.44
K45: 2 | L45: =P44 -> ₪ 984,763.44 | M45: =O45-N45 -> ₪ 15,282.27 | N45: =$L$41*L45 -> ₪ 2,954.29 | O45: =$L$42 -> ₪ 18,236.56 | P45: =L45-M45 -> ₪ 969,481.17
K46: 3 | L46: =P45 -> ₪ 969,481.17 | M46: ₪ 15,328.12 | N46: ₪ 2,908.44 | O46: ₪ 18,236.56 | P46: ₪ 954,153.05
K47: 4 | L47: ₪ 954,153.05 | M47: ₪ 15,374.10 | N47: ₪ 2,862.46 | O47: ₪ 18,236.56 | P47: ₪ 938,778.94
K48: 5 | L48: ₪ 938,778.94 | M48: ₪ 15,420.23 | N48: ₪ 2,816.34 | O48: ₪ 18,236.56 | P48: ₪ 923,358.72
K49: 6 | L49: ₪ 923,358.72 | M49: ₪ 15,466.49 | N49: ₪ 2,770.08 | O49: ₪ 18,236.56 | P49: ₪ 907,892.23
K50: 7 | L50: ₪ 907,892.23 | M50: ₪ 15,512.89 | N50: ₪ 2,723.68 | O50: ₪ 18,236.56 | P50: ₪ 892,379.34
K51: 8 | L51: ₪ 892,379.34 | M51: ₪ 15,559.42 | N51: ₪ 2,677.14 | O51: ₪ 18,236.56 | P51: ₪ 876,819.92
K52: 9 | L52: ₪ 876,819.92 | M52: ₪ 15,606.10 | N52: ₪ 2,630.46 | O52: ₪ 18,236.56 | P52: ₪ 861,213.82
K53: 10 | L53: ₪ 861,213.82 | M53: ₪ 15,652.92 | N53: ₪ 2,583.64 | O53: ₪ 18,236.56 | P53: ₪ 845,560.90
K54: 11 | L54: ₪ 845,560.90 | M54: ₪ 15,699.88 | N54: ₪ 2,536.68 | O54: ₪ 18,236.56 | P54: ₪ 829,861.02
K55: 12 | L55: ₪ 829,861.02 | M55: ₪ 15,746.98 | N55: ₪ 2,489.58 | O55: ₪ 18,236.56 | P55: ₪ 814,114.04
K56: 13 | L56: ₪ 814,114.04 | M56: ₪ 15,794.22 | N56: ₪ 2,442.34 | O56: ₪ 18,236.56 | P56: ₪ 798,319.82
K57: 14 | L57: ₪ 798,319.82 | M57: ₪ 15,841.60 | N57: ₪ 2,394.96 | O57: ₪ 18,236.56 | P57: ₪ 782,478.21
K58: 15 | L58: ₪ 782,478.21 | M58: ₪ 15,889.13 | N58: ₪ 2,347.43 | O58: ₪ 18,236.56 | P58: ₪ 766,589.08
K59: 16 | L59: ₪ 766,589.08 | M59: ₪ 15,936.80 | N59: ₪ 2,299.77 | O59: ₪ 18,236.56 | P59: ₪ 750,652.29
K60: 17 | L60: ₪ 750,652.29 | M60: ₪ 15,984.61 | N60: ₪ 2,251.96 | O60: ₪ 18,236.56 | P60: ₪ 734,667.68
K61: 18 | L61: ₪ 734,667.68 | M61: ₪ 16,032.56 | N61: ₪ 2,204.00 | O61: ₪ 18,236.56 | P61: ₪ 718,635.12
K62: 19 | L62: ₪ 718,635.12 | M62: ₪ 16,080.66 | N62: ₪ 2,155.91 | O62: ₪ 18,236.56 | P62: ₪ 702,554.47
K63: 20 | L63: ₪ 702,554.47 | M63: ₪ 16,128.90 | N63: ₪ 2,107.66 | O63: ₪ 18,236.56 | P63: ₪ 686,425.57
K64: 21 | L64: ₪ 686,425.57 | M64: ₪ 16,177.29 | N64: ₪ 2,059.28 | O64: ₪ 18,236.56 | P64: ₪ 670,248.28
K65: 22 | L65: ₪ 670,248.28 | M65: ₪ 16,225.82 | N65: ₪ 2,010.74 | O65: ₪ 18,236.56 | P65: ₪ 654,022.46
K66: 23 | L66: ₪ 654,022.46 | M66: ₪ 16,274.50 | N66: ₪ 1,962.07 | O66: ₪ 18,236.56 | P66: ₪ 637,747.97
K67: 24 | L67: ₪ 637,747.97 | M67: ₪ 16,323.32 | N67: ₪ 1,913.24 | O67: ₪ 18,236.56 | P67: ₪ 621,424.65
K68: 25 | L68: ₪ 621,424.65 | M68: ₪ 16,372.29 | N68: ₪ 1,864.27 | O68: ₪ 18,236.56 | P68: ₪ 605,052.36
K69: 26 | L69: ₪ 605,052.36 | M69: ₪ 16,421.41 | N69: ₪ 1,815.16 | O69: ₪ 18,236.56 | P69: ₪ 588,630.95
K70: 27 | L70: ₪ 588,630.95 | M70: ₪ 16,470.67 | N70: ₪ 1,765.89 | O70: ₪ 18,236.56 | P70: ₪ 572,160.28
K71: 28 | L71: ₪ 572,160.28 | M71: ₪ 16,520.08 | N71: ₪ 1,716.48 | O71: ₪ 18,236.56 | P71: ₪ 555,640.20
K72: 29 | L72: ₪ 555,640.20 | M72: ₪ 16,569.64 | N72: ₪ 1,666.92 | O72: ₪ 18,236.56 | P72: ₪ 539,070.56
K73: 30 | L73: ₪ 539,070.56 | M73: ₪ 16,619.35 | N73: ₪ 1,617.21 | O73: ₪ 18,236.56 | P73: ₪ 522,451.21
K74: 31 | L74: ₪ 522,451.21 | M74: ₪ 16,669.21 | N74: ₪ 1,567.35 | O74: ₪ 18,236.56 | P74: ₪ 505,782.00
K75: 32 | L75: ₪ 505,782.00 | M75: ₪ 16,719.22 | N75: ₪ 1,517.35 | O75: ₪ 18,236.56 | P75: ₪ 489,062.78
K76: 33 | L76: ₪ 489,062.78 | M76: ₪ 16,769.37 | N76: ₪ 1,467.19 | O76: ₪ 18,236.56 | P76: ₪ 472,293.41
K77: 34 | L77: ₪ 472,293.41 | M77: ₪ 16,819.68 | N77: ₪ 1,416.88 | O77: ₪ 18,236.56 | P77: ₪ 455,473.73
K78: 35 | L78: ₪ 455,473.73 | M78: ₪ 16,870.14 | N78: ₪ 1,366.42 | O78: ₪ 18,236.56 | P78: ₪ 438,603.59
K79: 36 | L79: ₪ 438,603.59 | M79: ₪ 16,920.75 | N79: ₪ 1,315.81 | O79: ₪ 18,236.56 | P79: ₪ 421,682.83
K80: 37 | L80: ₪ 421,682.83 | M80: ₪ 16,971.51 | N80: ₪ 1,265.05 | O80: ₪ 18,236.56 | P80: ₪ 404,711.32
K81: 38 | L81: ₪ 404,711.32 | M81: ₪ 17,022.43 | N81: ₪ 1,214.13 | O81: ₪ 18,236.56 | P81: ₪ 387,688.89
K82: 39 | L82: ₪ 387,688.89 | M82: ₪ 17,073.50 | N82: ₪ 1,163.07 | O82: ₪ 18,236.56 | P82: ₪ 370,615.40
K83: 40 | L83: ₪ 370,615.40 | M83: ₪ 17,124.72 | N83: ₪ 1,111.85 | O83: ₪ 18,236.56 | P83: ₪ 353,490.68
K84: 41 | L84: ₪ 353,490.68 | M84: ₪ 17,176.09 | N84: ₪ 1,060.47 | O84: ₪ 18,236.56 | P84: ₪ 336,314.59
K85: 42 | L85: ₪ 336,314.59 | M85: ₪ 17,227.62 | N85: ₪ 1,008.94 | O85: ₪ 18,236.56 | P85: ₪ 319,086.97
K86: 43 | L86: ₪ 319,086.97 | M86: ₪ 17,279.30 | N86: ₪ 957.26 | O86: ₪ 18,236.56 | P86: ₪ 301,807.67
K87: 44 | L87: ₪ 301,807.67 | M87: ₪ 17,331.14 | N87: ₪ 905.42 | O87: ₪ 18,236.56 | P87: ₪ 284,476.53
K88: 45 | L88: ₪ 284,476.53 | M88: ₪ 17,383.13 | N88: ₪ 853.43 | O88: ₪ 18,236.56 | P88: ₪ 267,093.40
K89: 46 | L89: ₪ 267,093.40 | M89: ₪ 17,435.28 | N89: ₪ 801.28 | O89: ₪ 18,236.56 | P89: ₪ 249,658.11
K90: 47 | L90: ₪ 249,658.11 | M90: ₪ 17,487.59 | N90: ₪ 748.97 | O90: ₪ 18,236.56 | P90: ₪ 232,170.52
K91: 48 | L91: ₪ 232,170.52 | M91: ₪ 17,540.05 | N91: ₪ 696.51 | O91: ₪ 18,236.56 | P91: ₪ 214,630.47
K92: 49 | L92: ₪ 214,630.47 | M92: ₪ 17,592.67 | N92: ₪ 643.89 | O92: ₪ 18,236.56 | P92: ₪ 197,037.80
K93: 50 | L93: ₪ 197,037.80 | M93: ₪ 17,645.45 | N93: ₪ 591.11 | O93: ₪ 18,236.56 | P93: ₪ 179,392.35
K94: 51 | L94: ₪ 179,392.35 | M94: ₪ 17,698.39 | N94: ₪ 538.18 | O94: ₪ 18,236.56 | P94: ₪ 161,693.97
K95: 52 | L95: ₪ 161,693.97 | M95: ₪ 17,751.48 | N95: ₪ 485.08 | O95: ₪ 18,236.56 | P95: ₪ 143,942.49
K96: 53 | L96: ₪ 143,942.49 | M96: ₪ 17,804.74 | N96: ₪ 431.83 | O96: ₪ 18,236.56 | P96: ₪ 126,137.75
K97: 54 | L97: ₪ 126,137.75 | M97: ₪ 17,858.15 | N97: ₪ 378.41 | O97: ₪ 18,236.56 | P97: ₪ 108,279.60
K98: 55 | L98: ₪ 108,279.60 | M98: ₪ 17,911.72 | N98: ₪ 324.84 | O98: ₪ 18,236.56 | P98: ₪ 90,367.88
K99: 56 | L99: ₪ 90,367.88 | M99: ₪ 17,965.46 | N99: ₪ 271.10 | O99: ₪ 18,236.56 | P99: ₪ 72,402.42
K100: 57 | L100: ₪ 72,402.42 | M100: ₪ 18,019.36 | N100: ₪ 217.21 | O100: ₪ 18,236.56 | P100: ₪ 54,383.06
K101: 58 | L101: ₪ 54,383.06 | M101: ₪ 18,073.41 | N101: ₪ 163.15 | O101: ₪ 18,236.56 | P101: ₪ 36,309.65
K102: 59 | L102: ₪ 36,309.65 | M102: ₪ 18,127.63 | N102: ₪ 108.93 | O102: ₪ 18,236.56 | P102: ₪ 18,182.02
K103: 60 | L103: ₪ 18,182.02 | M103: ₪ 18,182.02 | N103: ₪ 54.55 | O103: ₪ 18,236.56 | P103: ₪ -0.00
H113: שאלה 9
K119: נתונים:
K120: הלוואה | L120: 610,000 | M120: PV
K121: מספר תקופות | L121: 25 | M121: n
K122: ריבית | L122: 2.87% | M122: r
L123: =L120/L121 -> 24400 | M123: קרן קבועה
K124: מספר תקבול | L124: יתרת הקרן בתחילת תקופה | M124: תשלום ע"ח קרן | N124: תשלום ע"ח ריבית | O124: סך הכל תשלום | P124: יתרת הקרן בסוף התקופה
K125: 1 | L125: =L120 -> ₪ 610,000.00 | M125: =$L$123 -> ₪ 24,400.00 | N125: =$L$122*L125 -> ₪ 17,507.00 | O125: =M125+N125 -> ₪ 41,907.00 | P125: =L125-M125 -> ₪ 585,600.00
K126: 2 | L126: =P125 -> ₪ 585,600.00 | M126: =$L$123 -> ₪ 24,400.00 | N126: =$L$122*L126 -> ₪ 16,806.72 | O126: =M126+N126 -> ₪ 41,206.72 | P126: =L126-M126 -> ₪ 561,200.00
K127: 3 | L127: =P126 -> ₪ 561,200.00 | M127: ₪ 24,400.00 | N127: ₪ 16,106.44 | O127: ₪ 40,506.44 | P127: ₪ 536,800.00
K128: 4 | L128: ₪ 536,800.00 | M128: ₪ 24,400.00 | N128: ₪ 15,406.16 | O128: ₪ 39,806.16 | P128: ₪ 512,400.00
K129: 5 | L129: ₪ 512,400.00 | M129: ₪ 24,400.00 | N129: ₪ 14,705.88 | O129: ₪ 39,105.88 | P129: ₪ 488,000.00
K130: 6 | L130: ₪ 488,000.00 | M130: ₪ 24,400.00 | N130: ₪ 14,005.60 | O130: ₪ 38,405.60 | P130: ₪ 463,600.00
K131: 7 | L131: ₪ 463,600.00 | M131: ₪ 24,400.00 | N131: ₪ 13,305.32 | O131: ₪ 37,705.32 | P131: ₪ 439,200.00
K132: 8 | L132: ₪ 439,200.00 | M132: ₪ 24,400.00 | N132: ₪ 12,605.04 | O132: ₪ 37,005.04 | P132: ₪ 414,800.00
K133: 9 | L133: ₪ 414,800.00 | M133: ₪ 24,400.00 | N133: ₪ 11,904.76 | O133: ₪ 36,304.76 | P133: ₪ 390,400.00
K134: 10 | L134: ₪ 390,400.00 | M134: ₪ 24,400.00 | N134: ₪ 11,204.48 | O134: ₪ 35,604.48 | P134: ₪ 366,000.00
K135: 11 | L135: ₪ 366,000.00 | M135: ₪ 24,400.00 | N135: ₪ 10,504.20 | O135: ₪ 34,904.20 | P135: ₪ 341,600.00
K136: 12 | L136: ₪ 341,600.00 | M136: ₪ 24,400.00 | N136: ₪ 9,803.92 | O136: ₪ 34,203.92 | P136: ₪ 317,200.00
K137: 13 | L137: ₪ 317,200.00 | M137: ₪ 24,400.00 | N137: ₪ 9,103.64 | O137: ₪ 33,503.64 | P137: ₪ 292,800.00
K138: 14 | L138: ₪ 292,800.00 | M138: ₪ 24,400.00 | N138: ₪ 8,403.36 | O138: ₪ 32,803.36 | P138: ₪ 268,400.00
K139: 15 | L139: ₪ 268,400.00 | M139: ₪ 24,400.00 | N139: ₪ 7,703.08 | O139: ₪ 32,103.08 | P139: ₪ 244,000.00
K140: 16 | L140: ₪ 244,000.00 | M140: ₪ 24,400.00 | N140: ₪ 7,002.80 | O140: ₪ 31,402.80 | P140: ₪ 219,600.00
K141: 17 | L141: ₪ 219,600.00 | M141: ₪ 24,400.00 | N141: ₪ 6,302.52 | O141: ₪ 30,702.52 | P141: ₪ 195,200.00
K142: 18 | L142: ₪ 195,200.00 | M142: ₪ 24,400.00 | N142: ₪ 5,602.24 | O142: ₪ 30,002.24 | P142: ₪ 170,800.00
K143: 19 | L143: ₪ 170,800.00 | M143: ₪ 24,400.00 | N143: ₪ 4,901.96 | O143: ₪ 29,301.96 | P143: ₪ 146,400.00
K144: 20 | L144: ₪ 146,400.00 | M144: ₪ 24,400.00 | N144: ₪ 4,201.68 | O144: ₪ 28,601.68 | P144: ₪ 122,000.00
K145: 21 | L145: ₪ 122,000.00 | M145: ₪ 24,400.00 | N145: ₪ 3,501.40 | O145: ₪ 27,901.40 | P145: ₪ 97,600.00
K146: 22 | L146: ₪ 97,600.00 | M146: ₪ 24,400.00 | N146: ₪ 2,801.12 | O146: ₪ 27,201.12 | P146: ₪ 73,200.00
K147: 23 | L147: ₪ 73,200.00 | M147: ₪ 24,400.00 | N147: ₪ 2,100.84 | O147: ₪ 26,500.84 | P147: ₪ 48,800.00
K148: 24 | L148: ₪ 48,800.00 | M148: ₪ 24,400.00 | N148: ₪ 1,400.56 | O148: ₪ 25,800.56 | P148: ₪ 24,400.00
K149: 25 | L149: ₪ 24,400.00 | M149: ₪ 24,400.00 | N149: ₪ 700.28 | O149: ₪ 25,100.28 | P149: ₪ 0.00
H155: שאלה 10
K162: נתונים:
K163: הלוואה | L163: 120,000 | M163: PV
K164: חודשים | L164: 6 | M164: n
K165: ריבית | L165: 0.80% | M165: r
K167: מספר תקבול | L167: יתרת הקרן בתחילת תקופה | M167: תשלום ע"ח קרן | N167: תשלום ע"ח ריבית | O167: סך הכל תשלום | P167: יתרת הקרן בסוף התקופה
K168: 1 | L168: =L163 -> ₪ 120,000.00 | M168: ₪ 0.00 | N168: =$L$165*L168 -> ₪ 960.00 | O168: =M168+N168 -> ₪ 960.00 | P168: =L168-M168 -> ₪ 120,000.00
K169: 2 | L169: =P168 -> ₪ 120,000.00 | M169: ₪ 0.00 | N169: =$L$165*L169 -> ₪ 960.00 | O169: =M169+N169 -> ₪ 960.00 | P169: =L169-M169 -> ₪ 120,000.00
K170: 3 | L170: =P169 -> ₪ 120,000.00 | M170: ₪ 0.00 | N170: ₪ 960.00 | O170: ₪ 960.00 | P170: ₪ 120,000.00
K171: 4 | L171: ₪ 120,000.00 | M171: ₪ 0.00 | N171: ₪ 960.00 | O171: ₪ 960.00 | P171: ₪ 120,000.00
K172: 5 | L172: ₪ 120,000.00 | M172: ₪ 0.00 | N172: ₪ 960.00 | O172: ₪ 960.00 | P172: ₪ 120,000.00
K173: 6 | L173: ₪ 120,000.00 | M173: =L163 -> ₪ 120,000.00 | N173: ₪ 960.00 | O173: ₪ 120,960.00 | P173: ₪ 0.00
H183: שאלה 11
K188: נתונים:
K189: הלוואה | L189: 35,000 | M189: PV
K190: חודשים | L190: 8 | M190: n
K191: ריבית שנתית אפקטיבית | L191: 6.16% | M191: r
K192: ריבית חודשית | L192: =(1+L191)^(1/12)-1 -> 0.50% | M192: r
K194: מספר תקבול | L194: יתרת הקרן בתחילת תקופה | M194: תשלום ע"ח קרן | N194: תשלום ע"ח ריבית | O194: סך הכל תשלום | P194: יתרת הקרן בסוף התקופה
K195: 1 | L195: =L189 -> ₪ 35,000.00 | M195: ₪ 0.00 | N195: ₪ 0.00 | O195: =N195+M195 -> ₪ 0.00 | P195: =FV($L$192,K195,,-$L$189) -> ₪ 35,174.79
K196: 2 | L196: =P195 -> ₪ 35,174.79 | M196: ₪ 0.00 | N196: ₪ 0.00 | O196: =N196+M196 -> ₪ 0.00 | P196: =FV($L$192,K196,,-$L$189) -> ₪ 35,350.44
K197: 3 | L197: =P196 -> ₪ 35,350.44 | M197: ₪ 0.00 | N197: ₪ 0.00 | O197: ₪ 0.00 | P197: =FV($L$192,K197,,-$L$189) -> ₪ 35,526.98
K198: 4 | L198: ₪ 35,526.98 | M198: ₪ 0.00 | N198: ₪ 0.00 | O198: ₪ 0.00 | P198: ₪ 35,704.40
K199: 5 | L199: ₪ 35,704.40 | M199: ₪ 0.00 | N199: ₪ 0.00 | O199: ₪ 0.00 | P199: ₪ 35,882.70
K200: 6 | L200: ₪ 35,882.70 | M200: ₪ 0.00 | N200: ₪ 0.00 | O200: ₪ 0.00 | P200: ₪ 36,061.89
K201: 7 | L201: ₪ 36,061.89 | M201: ₪ 0.00 | N201: ₪ 0.00 | O201: ₪ 0.00 | P201: ₪ 36,241.98
K202: 8 | L202: ₪ 36,241.98 | M202: =L189 -> ₪ 35,000.00 | N202: =O202-M202 -> ₪ 1,422.97 | O202: =FV(L192,L190,,-L189) -> ₪ 36,422.97 | P202: =FV($L$192,K202,,-$L$189) -> ₪ 36,422.97

Sheet שאלות סיכום 12-15
G3: שאלה 12
K9: נתונים:
K10: הלוואה | L10: 85,000 | M10: PV | O10: 7.44%
K11: חודשים | L11: =2*12 -> 24 | M11: n | O11: 12
K12: ריבית | L12: =(1+O10)^(1/O11)-1 -> 0.60% | M12: r
L13: =PMT(L12,L11,-L10,,) -> ₪ 3,813.29 | M13: PMT
K14: מספר תקבול | L14: יתרת הקרן בתחילת תקופה | M14: תשלום ע"ח קרן | N14: תשלום ע"ח ריבית | O14: סך הכל תשלום | P14: יתרת הקרן בסוף התקופה
K15: 1 | L15: =L10 -> ₪ 85,000.00 | M15: =O15-N15 -> ₪ 3,303.45 | N15: =$L$12*L15 -> ₪ 509.84 | O15: =$L$13 -> ₪ 3,813.29 | P15: =L15-M15 -> ₪ 81,696.55
K16: 2 | L16: =P15 -> ₪ 81,696.55 | M16: =O16-N16 -> ₪ 3,323.27 | N16: =$L$12*L16 -> ₪ 490.03 | O16: =$L$13 -> ₪ 3,813.29 | P16: =L16-M16 -> ₪ 78,373.28
K17: 3 | L17: =P16 -> ₪ 78,373.28 | M17: ₪ 3,343.20 | N17: ₪ 470.09 | O17: ₪ 3,813.29 | P17: ₪ 75,030.08
K18: 4 | L18: ₪ 75,030.08 | M18: ₪ 3,363.25 | N18: ₪ 450.04 | O18: ₪ 3,813.29 | P18: ₪ 71,666.82
K19: 5 | L19: ₪ 71,666.82 | M19: ₪ 3,383.43 | N19: ₪ 429.87 | O19: ₪ 3,813.29 | P19: ₪ 68,283.39
K20: 6 | L20: ₪ 68,283.39 | M20: ₪ 3,403.72 | N20: ₪ 409.57 | O20: ₪ 3,813.29 | P20: ₪ 64,879.67
K21: 7 | L21: ₪ 64,879.67 | M21: ₪ 3,424.14 | N21: ₪ 389.16 | O21: ₪ 3,813.29 | P21: ₪ 61,455.54
K22: 8 | L22: ₪ 61,455.54 | M22: ₪ 3,444.68 | N22: ₪ 368.62 | O22: ₪ 3,813.29 | P22: ₪ 58,010.86
K23: 9 | L23: ₪ 58,010.86 | M23: ₪ 3,465.34 | N23: ₪ 347.96 | O23: ₪ 3,813.29 | P23: ₪ 54,545.52
K24: 10 | L24: ₪ 54,545.52 | M24: ₪ 3,486.12 | N24: ₪ 327.17 | O24: ₪ 3,813.29 | P24: ₪ 51,059.40
K25: 11 | L25: ₪ 51,059.40 | M25: ₪ 3,507.03 | N25: ₪ 306.26 | O25: ₪ 3,813.29 | P25: ₪ 47,552.37
K26: 12 | L26: ₪ 47,552.37 | M26: ₪ 3,528.07 | N26: ₪ 285.22 | O26: ₪ 3,813.29 | P26: ₪ 44,024.30
K27: 13 | L27: ₪ 44,024.30 | M27: ₪ 3,549.23 | N27: ₪ 264.06 | O27: ₪ 3,813.29 | P27: ₪ 40,475.07
K28: 14 | L28: ₪ 40,475.07 | M28: ₪ 3,570.52 | N28: ₪ 242.77 | O28: ₪ 3,813.29 | P28: ₪ 36,904.55
K29: 15 | L29: ₪ 36,904.55 | M29: ₪ 3,591.94 | N29: ₪ 221.36 | O29: ₪ 3,813.29 | P29: ₪ 33,312.61
K30: 16 | L30: ₪ 33,312.61 | M30: ₪ 3,613.48 | N30: ₪ 199.81 | O30: ₪ 3,813.29 | P30: ₪ 29,699.13
K31: 17 | L31: ₪ 29,699.13 | M31: ₪ 3,635.15 | N31: ₪ 178.14 | O31: ₪ 3,813.29 | P31: ₪ 26,063.98
K32: 18 | L32: ₪ 26,063.98 | M32: ₪ 3,656.96 | N32: ₪ 156.33 | O32: ₪ 3,813.29 | P32: ₪ 22,407.02
K33: 19 | L33: ₪ 22,407.02 | M33: ₪ 3,678.89 | N33: ₪ 134.40 | O33: ₪ 3,813.29 | P33: ₪ 18,728.12
K34: 20 | L34: ₪ 18,728.12 | M34: ₪ 3,700.96 | N34: ₪ 112.33 | O34: ₪ 3,813.29 | P34: ₪ 15,027.16
K35: 21 | L35: ₪ 15,027.16 | M35: ₪ 3,723.16 | N35: ₪ 90.13 | O35: ₪ 3,813.29 | P35: ₪ 11,304.00
K36: 22 | L36: ₪ 11,304.00 | M36: ₪ 3,745.49 | N36: ₪ 67.80 | O36: ₪ 3,813.29 | P36: ₪ 7,558.51
K37: 23 | L37: ₪ 7,558.51 | M37: ₪ 3,767.96 | N37: ₪ 45.34 | O37: ₪ 3,813.29 | P37: ₪ 3,790.56
K38: 24 | L38: ₪ 3,790.56 | M38: ₪ 3,790.56 | N38: ₪ 22.74 | O38: ₪ 3,813.29 | P38: ₪ 0.00
K40: סעיף ב | L40: =P26 -> 44,024.30
G43: שאלה 13
K50: נתונים: | N50: סעיף ב | O50: =P67 -> ₪ 42,500.00
K51: הלוואה | L51: 85,000 | M51: PV | O51: 8.73%
K52: חודשים | L52: =2*12 -> 24 | M52: n | O52: 12
K53: ריבית | L53: =(1+O51)^(1/O52)-1 -> 0.70% | M53: r
L54: =L51/L52 -> ₪ 3,541.67 | M54: החזר קרן שווה
K55: מספר תקבול | L55: יתרת הקרן בתחילת תקופה | M55: תשלום ע"ח קרן | N55: תשלום ע"ח ריבית | O55: סך הכל תשלום | P55: יתרת הקרן בסוף התקופה
K56: 1 | L56: =L51 -> ₪ 85,000.00 | M56: =$L$54 -> ₪ 3,541.67 | N56: =$L$53*L56 -> ₪ 594.93 | O56: =M56+N56 -> ₪ 4,136.60 | P56: =L56-M56 -> ₪ 81,458.33
K57: 2 | L57: =P56 -> ₪ 81,458.33 | M57: =$L$54 -> ₪ 3,541.67 | N57: =$L$53*L57 -> ₪ 570.14 | O57: =M57+N57 -> ₪ 4,111.81 | P57: =L57-M57 -> ₪ 77,916.67
K58: 3 | L58: =P57 -> ₪ 77,916.67 | M58: ₪ 3,541.67 | N58: ₪ 545.35 | O58: ₪ 4,087.02 | P58: ₪ 74,375.00
K59: 4 | L59: ₪ 74,375.00 | M59: ₪ 3,541.67 | N59: ₪ 520.56 | O59: ₪ 4,062.23 | P59: ₪ 70,833.33
K60: 5 | L60: ₪ 70,833.33 | M60: ₪ 3,541.67 | N60: ₪ 495.78 | O60: ₪ 4,037.44 | P60: ₪ 67,291.67
K61: 6 | L61: ₪ 67,291.67 | M61: ₪ 3,541.67 | N61: ₪ 470.99 | O61: ₪ 4,012.65 | P61: ₪ 63,750.00
K62: 7 | L62: ₪ 63,750.00 | M62: ₪ 3,541.67 | N62: ₪ 446.20 | O62: ₪ 3,987.86 | P62: ₪ 60,208.33
K63: 8 | L63: ₪ 60,208.33 | M63: ₪ 3,541.67 | N63: ₪ 421.41 | O63: ₪ 3,963.08 | P63: ₪ 56,666.67
K64: 9 | L64: ₪ 56,666.67 | M64: ₪ 3,541.67 | N64: ₪ 396.62 | O64: ₪ 3,938.29 | P64: ₪ 53,125.00
K65: 10 | L65: ₪ 53,125.00 | M65: ₪ 3,541.67 | N65: ₪ 371.83 | O65: ₪ 3,913.50 | P65: ₪ 49,583.33
K66: 11 | L66: ₪ 49,583.33 | M66: ₪ 3,541.67 | N66: ₪ 347.04 | O66: ₪ 3,888.71 | P66: ₪ 46,041.67
K67: 12 | L67: ₪ 46,041.67 | M67: ₪ 3,541.67 | N67: ₪ 322.25 | O67: ₪ 3,863.92 | P67: ₪ 42,500.00
K68: 13 | L68: ₪ 42,500.00 | M68: ₪ 3,541.67 | N68: ₪ 297.47 | O68: ₪ 3,839.13 | P68: ₪ 38,958.33
K69: 14 | L69: ₪ 38,958.33 | M69: ₪ 3,541.67 | N69: ₪ 272.68 | O69: ₪ 3,814.34 | P69: ₪ 35,416.67
K70: 15 | L70: ₪ 35,416.67 | M70: ₪ 3,541.67 | N70: ₪ 247.89 | O70: ₪ 3,789.55 | P70: ₪ 31,875.00
K71: 16 | L71: ₪ 31,875.00 | M71: ₪ 3,541.67 | N71: ₪ 223.10 | O71: ₪ 3,764.77 | P71: ₪ 28,333.33
K72: 17 | L72: ₪ 28,333.33 | M72: ₪ 3,541.67 | N72: ₪ 198.31 | O72: ₪ 3,739.98 | P72: ₪ 24,791.67
K73: 18 | L73: ₪ 24,791.67 | M73: ₪ 3,541.67 | N73: ₪ 173.52 | O73: ₪ 3,715.19 | P73: ₪ 21,250.00
K74: 19 | L74: ₪ 21,250.00 | M74: ₪ 3,541.67 | N74: ₪ 148.73 | O74: ₪ 3,690.40 | P74: ₪ 17,708.33
K75: 20 | L75: ₪ 17,708.33 | M75: ₪ 3,541.67 | N75: ₪ 123.94 | O75: ₪ 3,665.61 | P75: ₪ 14,166.67
K76: 21 | L76: ₪ 14,166.67 | M76: ₪ 3,541.67 | N76: ₪ 99.16 | O76: ₪ 3,640.82 | P76: ₪ 10,625.00
K77: 22 | L77: ₪ 10,625.00 | M77: ₪ 3,541.67 | N77: ₪ 74.37 | O77: ₪ 3,616.03 | P77: ₪ 7,083.33
K78: 23 | L78: ₪ 7,083.33 | M78: ₪ 3,541.67 | N78: ₪ 49.58 | O78: ₪ 3,591.24 | P78: ₪ 3,541.67
K79: 24 | L79: ₪ 3,541.67 | M79: ₪ 3,541.67 | N79: ₪ 24.79 | O79: ₪ 3,566.46 | P79: ₪ -0.00
K82: סעיף ב
G88: שאלה 14
K95: נתונים:
K96: 92,000 | L96: pv
K97: 24 | L97: n
K98: 5.450% | L98: r | M98: שנתי | N98: 5.45
K99: =(1+K98)^(1/N99)-1 -> 0.44% | L99: r | M99: חודשי | N99: 12
K101: סעיף א
K102: תשלום | L102: יתרת הקרן בתחילת התקופה | M102: תשלום ע"ח קרן | N102: תשלום ע"ח ריבית | O102: סך התשלום | P102: יתרת הקרן בסוף התקופה
K103: 1 | L103: =K96 -> 92,000 | M103: 0 | N103: =$K$99*L103 -> 408 | O103: =N103+M103 -> 408 | P103: =L103-M103 -> 92,000
K104: 2 | L104: =L103-M103 -> 92,000 | M104: 0 | N104: =$K$99*L104 -> 408 | O104: =N104+M104 -> 408 | P104: =L104-M104 -> 92,000
K105: 3 | L105: =L104-M104 -> 92,000 | M105: 0 | N105: 408 | O105: 408 | P105: 92,000
K106: 4 | L106: 92,000 | M106: 0 | N106: 408 | O106: 408 | P106: 92,000
K107: 5 | L107: 92,000 | M107: 0 | N107: 408 | O107: 408 | P107: 92,000
K108: 6 | L108: 92,000 | M108: 0 | N108: 408 | O108: 408 | P108: 92,000
K109: 7 | L109: 92,000 | M109: 0 | N109: 408 | O109: 408 | P109: 92,000
K110: 8 | L110: 92,000 | M110: 0 | N110: 408 | O110: 408 | P110: 92,000
K111: 9 | L111: 92,000 | M111: 0 | N111: 408 | O111: 408 | P111: 92,000
K112: 10 | L112: 92,000 | M112: 0 | N112: 408 | O112: 408 | P112: 92,000
K113: 11 | L113: 92,000 | M113: 0 | N113: 408 | O113: 408 | P113: 92,000
K114: 12 | L114: 92,000 | M114: 0 | N114: 408 | O114: 408 | P114: 92,000
K115: 13 | L115: 92,000 | M115: 0 | N115: 408 | O115: 408 | P115: 92,000
K116: 14 | L116: 92,000 | M116: 0 | N116: 408 | O116: 408 | P116: 92,000
K117: 15 | L117: 92,000 | M117: 0 | N117: 408 | O117: 408 | P117: 92,000
K118: 16 | L118: 92,000 | M118: 0 | N118: 408 | O118: 408 | P118: 92,000
K119: 17 | L119: 92,000 | M119: 0 | N119: 408 | O119: 408 | P119: 92,000
K120: 18 | L120: 92,000 | M120: 0 | N120: 408 | O120: 408 | P120: 92,000
K121: 19 | L121: 92,000 | M121: 0 | N121: 408 | O121: 408 | P121: 92,000
K122: 20 | L122: 92,000 | M122: 0 | N122: 408 | O122: 408 | P122: 92,000
K123: 21 | L123: 92,000 | M123: 0 | N123: 408 | O123: 408 | P123: 92,000
K124: 22 | L124: 92,000 | M124: 0 | N124: 408 | O124: 408 | P124: 92,000
K125: 23 | L125: 92,000 | M125: 0 | N125: 408 | O125: 408 | P125: 92,000
K126: 24 | L126: 92,000 | M126: =K96 -> 92,000 | N126: 408 | O126: 92408 | P126: 0
N127: =SUM(N103:N126) -> 9,786
K128: סעיף ב
L130: =K96 -> 92,000
G135: שאלה 15
K141: נתונים:
K142: 76,000 | L142: pv
K143: 24 | L143: n
L144: r | M144: שנתי
K145: 0.60% | L145: r | M145: חודשי | N145: 12
K147: סעיף א
K148: תשלום | L148: יתרת הקרן בתחילת התקופה | M148: תשלום ע"ח קרן | N148: תשלום ע"ח ריבית | O148: סך התשלום | P148: יתרת הקרן בסוף התקופה
K149: 1 | L149: =K142 -> 76,000 | M149: 0 | N149: 0 | O149: =M149+N149 -> 0 | P149: =FV($K$145,K149,,-$K$142) -> 76,456
K150: 2 | L150: =P149 -> 76,456 | M150: 0 | N150: 0 | O150: =M150+N150 -> 0 | P150: =FV($K$145,K150,,-$K$142) -> 76,915
K151: 3 | L151: =P150 -> 76,915 | M151: 0 | N151: 0 | O151: 0 | P151: 77,376
K152: 4 | L152: 77,376 | M152: 0 | N152: 0 | O152: 0 | P152: 77,840
K153: 5 | L153: 77,840 | M153: 0 | N153: 0 | O153: 0 | P153: 78,308
K154: 6 | L154: 78,308 | M154: 0 | N154: 0 | O154: 0 | P154: 78,777
K155: 7 | L155: 78,777 | M155: 0 | N155: 0 | O155: 0 | P155: 79,250
K156: 8 | L156: 79,250 | M156: 0 | N156: 0 | O156: 0 | P156: 79,726
K157: 9 | L157: 79,726 | M157: 0 | N157: 0 | O157: 0 | P157: 80,204
K158: 10 | L158: 80,204 | M158: 0 | N158: 0 | O158: 0 | P158: 80,685
K159: 11 | L159: 80,685 | M159: 0 | N159: 0 | O159: 0 | P159: 81,169
K160: 12 | L160: 81,169 | M160: 0 | N160: 0 | O160: 0 | P160: 81,656
K161: 13 | L161: 81,656 | M161: 0 | N161: 0 | O161: 0 | P161: 82,146
K162: 14 | L162: 82,146 | M162: 0 | N162: 0 | O162: 0 | P162: 82,639
K163: 15 | L163: 82,639 | M163: 0 | N163: 0 | O163: 0 | P163: 83,135
K164: 16 | L164: 83,135 | M164: 0 | N164: 0 | O164: 0 | P164: 83,634
K165: 17 | L165: 83,634 | M165: 0 | N165: 0 | O165: 0 | P165: 84,135
K166: 18 | L166: 84,135 | M166: 0 | N166: 0 | O166: 0 | P166: 84,640
K167: 19 | L167: 84,640 | M167: 0 | N167: 0 | O167: 0 | P167: 85,148
K168: 20 | L168: 85,148 | M168: 0 | N168: 0 | O168: 0 | P168: 85,659
K169: 21 | L169: 85,659 | M169: 0 | N169: 0 | O169: 0 | P169: 86,173
K170: 22 | L170: 86,173 | M170: 0 | N170: 0 | O170: 0 | P170: 86,690
K171: 23 | L171: 86,690 | M171: 0 | N171: 0 | O171: 0 | P171: 87,210
K172: 24 | L172: 87,210 | M172: =K142 -> 76,000 | N172: =P172-M172 -> 11,733 | O172: 87,733 | P172: 87,733
K175: סעיף ב
L176: =FV(K145,N145,,-K142) -> 81,656.24
K246: נתונים:
K247: 300,000 | L247: pv
K248: 60 | L248: n
K249: 3.659% | L249: r | M249: שנתי
K250: =(1+K249)^(1/N250)-1 -> 0.30% | L250: r | M250: חודשי | N250: 12 | O250: =60-30 -> 30
K252: סעיף א
K253: תשלום | L253: יתרת הקרן בתחילת התקופה | M253: תשלום ע"ח קרן | N253: תשלום ע"ח ריבית | O253: סך התשלום | P253: יתרת הקרן בסוף התקופה
K254: 1 | L254: =K247 -> 300,000.00 | M254: 0.00 | N254: 0.00 | O254: =N254+M254 -> 0.00 | P254: =FV($K$250,K254,,-$K$247,0) -> 300,899.76
K255: 2 | L255: =P254 -> 300,899.76 | M255: 0.00 | N255: 0.00 | O255: =N255+M255 -> 0.00 | P255: =FV($K$250,K255,,-$K$247,0) -> 301,802.22
K256: 3 | L256: =P255 -> 301,802.22 | M256: 0.00 | N256: 0.00 | O256: 0.00 | P256: 302,707.38
K257: 4 | L257: 302,707.38 | M257: 0.00 | N257: 0.00 | O257: 0.00 | P257: 303,615.26
K258: 5 | L258: 303,615.26 | M258: 0.00 | N258: 0.00 | O258: 0.00 | P258: 304,525.86
K259: 6 | L259: 304,525.86 | M259: 0.00 | N259: 0.00 | O259: 0.00 | P259: 305,439.19
K260: 7 | L260: 305,439.19 | M260: 0.00 | N260: 0.00 | O260: 0.00 | P260: 306,355.26
K261: 8 | L261: 306,355.26 | M261: 0.00 | N261: 0.00 | O261: 0.00 | P261: 307,274.08
K262: 9 | L262: 307,274.08 | M262: 0.00 | N262: 0.00 | O262: 0.00 | P262: 308,195.66
K263: 10 | L263: 308,195.66 | M263: 0.00 | N263: 0.00 | O263: 0.00 | P263: 309,120.00
K264: 11 | L264: 309,120.00 | M264: 0.00 | N264: 0.00 | O264: 0.00 | P264: 310,047.11
K265: 12 | L265: 310,047.11 | M265: 0.00 | N265: 0.00 | O265: 0.00 | P265: 310,977.00
K266: 13 | L266: 310,977.00 | M266: 0.00 | N266: 0.00 | O266: 0.00 | P266: 311,909.68
K267: 14 | L267: 311,909.68 | M267: 0.00 | N267: 0.00 | O267: 0.00 | P267: 312,845.16
K268: 15 | L268: 312,845.16 | M268: 0.00 | N268: 0.00 | O268: 0.00 | P268: 313,783.44
K269: 16 | L269: 313,783.44 | M269: 0.00 | N269: 0.00 | O269: 0.00 | P269: 314,724.54
K270: 17 | L270: 314,724.54 | M270: 0.00 | N270: 0.00 | O270: 0.00 | P270: 315,668.46
K271: 18 | L271: 315,668.46 | M271: 0.00 | N271: 0.00 | O271: 0.00 | P271: 316,615.21
K272: 19 | L272: 316,615.21 | M272: 0.00 | N272: 0.00 | O272: 0.00 | P272: 317,564.80
K273: 20 | L273: 317,564.80 | M273: 0.00 | N273: 0.00 | O273: 0.00 | P273: 318,517.24
K274: 21 | L274: 318,517.24 | M274: 0.00 | N274: 0.00 | O274: 0.00 | P274: 319,472.54
K275: 22 | L275: 319,472.54 | M275: 0.00 | N275: 0.00 | O275: 0.00 | P275: 320,430.70
K276: 23 | L276: 320,430.70 | M276: 0.00 | N276: 0.00 | O276: 0.00 | P276: 321,391.73
K277: 24 | L277: 321,391.73 | M277: 0.00 | N277: 0.00 | O277: 0.00 | P277: 322,355.65
K278: 25 | L278: 322,355.65 | M278: 0.00 | N278: 0.00 | O278: 0.00 | P278: 323,322.46
K279: 26 | L279: 323,322.46 | M279: 0.00 | N279: 0.00 | O279: 0.00 | P279: 324,292.16
K280: 27 | L280: 324,292.16 | M280: 0.00 | N280: 0.00 | O280: 0.00 | P280: 325,264.78
K281: 28 | L281: 325,264.78 | M281: 0.00 | N281: 0.00 | O281: 0.00 | P281: 326,240.31
K282: 29 | L282: 326,240.31 | M282: 0.00 | N282: 0.00 | O282: 0.00 | P282: 327,218.77
K283: 30 | L283: 327,218.77 | M283: 0.00 | N283: 0.00 | O283: 0.00 | P283: 328,200.16
K284: 31 | L284: 328,200.16 | M284: 0.00 | N284: 0.00 | O284: 0.00 | P284: 329,184.50
K285: 32 | L285: 329,184.50 | M285: 0.00 | N285: 0.00 | O285: 0.00 | P285: 330,171.79
K286: 33 | L286: 330,171.79 | M286: 0.00 | N286: 0.00 | O286: 0.00 | P286: 331,162.04
K287: 34 | L287: 331,162.04 | M287: 0.00 | N287: 0.00 | O287: 0.00 | P287: 332,155.26
K288: 35 | L288: 332,155.26 | M288: 0.00 | N288: 0.00 | O288: 0.00 | P288: 333,151.46
K289: 36 | L289: 333,151.46 | M289: 0.00 | N289: 0.00 | O289: 0.00 | P289: 334,150.64
K290: 37 | L290: 334,150.64 | M290: 0.00 | N290: 0.00 | O290: 0.00 | P290: 335,152.82
K291: 38 | L291: 335,152.82 | M291: 0.00 | N291: 0.00 | O291: 0.00 | P291: 336,158.01
K292: 39 | L292: 336,158.01 | M292: 0.00 | N292: 0.00 | O292: 0.00 | P292: 337,166.22
K293: 40 | L293: 337,166.22 | M293: 0.00 | N293: 0.00 | O293: 0.00 | P293: =FV($K$250,K293,,-$K$247,0) -> 338,177.44
K294: 41 | L294: 338,177.44 | M294: 0.00 | N294: 0.00 | O294: 0.00 | P294: 339,191.70
K295: 42 | L295: 339,191.70 | M295: 0.00 | N295: 0.00 | O295: 0.00 | P295: 340,209.01
K296: 43 | L296: 340,209.01 | M296: 0.00 | N296: 0.00 | O296: 0.00 | P296: 341,229.36
K297: 44 | L297: 341,229.36 | M297: 0.00 | N297: 0.00 | O297: 0.00 | P297: 342,252.77
K298: 45 | L298: 342,252.77 | M298: 0.00 | N298: 0.00 | O298: 0.00 | P298: 343,279.26
K299: 46 | L299: 343,279.26 | M299: 0.00 | N299: 0.00 | O299: 0.00 | P299: 344,308.82
K300: 47 | L300: 344,308.82 | M300: 0.00 | N300: 0.00 | O300: 0.00 | P300: 345,341.47
K301: 48 | L301: 345,341.47 | M301: 0.00 | N301: 0.00 | O301: 0.00 | P301: 346,377.21
K302: 49 | L302: 346,377.21 | M302: 0.00 | N302: 0.00 | O302: 0.00 | P302: 347,416.07
K303: 50 | L303: 347,416.07 | M303: 0.00 | N303: 0.00 | O303: 0.00 | P303: 348,458.04
K304: 51 | L304: 348,458.04 | M304: 0.00 | N304: 0.00 | O304: 0.00 | P304: 349,503.13
K305: 52 | L305: 349,503.13 | M305: 0.00 | N305: 0.00 | O305: 0.00 | P305: 350,551.36
K306: 53 | L306: 350,551.36 | M306: 0.00 | N306: 0.00 | O306: 0.00 | P306: 351,602.73
K307: 54 | L307: 351,602.73 | M307: 0.00 | N307: 0.00 | O307: 0.00 | P307: 352,657.25
K308: 55 | L308: 352,657.25 | M308: 0.00 | N308: 0.00 | O308: 0.00 | P308: 353,714.94
K309: 56 | L309: 353,714.94 | M309: 0.00 | N309: 0.00 | O309: 0.00 | P309: 354,775.80
K310: 57 | L310: 354,775.80 | M310: 0.00 | N310: 0.00 | O310: 0.00 | P310: 355,839.84
K311: 58 | L311: 355,839.84 | M311: 0.00 | N311: 0.00 | O311: 0.00 | P311: 356,907.08
K312: 59 | L312: 356,907.08 | M312: 0.00 | N312: 0.00 | O312: 0.00 | P312: =FV($K$250,K312,,-$K$247,0) -> 357,977.51
K313: 60 | L313: 357,977.51 | M313: =K247 -> 300,000.00 | N313: =O313-M313 -> 59,051.16 | O313: =FV(K250,K248,,-K247) -> 359,051.16 | P313: 0.00
... 2 more rows

Sheet שאלות מבחינות 16-19
I2: שאלה 1
F4: שאלה 16 | I4: נלקחה הלוואה על סכום של 500,000 ש"ח אשר תוחזר על פי לוח סילוקין שפיצר ההלוואה תוחזר בתשלומים חודשיים, למשך 10 שנים. הריבית האפקטיבית השנתית הינה 3.65% מה יהיה גובה התשלום על חשבון הריבית בתשלום מספר 111?
I10: נתונים:
I11: הלוואה | J11: 500,000 | K11: PV | M11: 3.65%
I12: חודשים | J12: =10*12 -> 120 | K12: n | M12: 12
I13: ריבית | J13: =(1+M11)^(1/12)-1 -> 0.30% | K13: r
J14: =PMT(J13,J12,-J11,,) -> ₪ 4,965.48 | K14: PMT
I15: מספר תקבול | J15: יתרת הקרן בתחילת תקופה | K15: תשלום ע"ח קרן | L15: תשלום ע"ח ריבית | M15: סך הכל תשלום | N15: יתרת הקרן בסוף התקופה
I16: 1 | J16: =J11 -> ₪ 500,000.00 | K16: =M16-L16 -> ₪ 3,469.51 | L16: =$J$13*J16 -> ₪ 1,495.97 | M16: =$J$14 -> ₪ 4,965.48 | N16: =J16-K16 -> ₪ 496,530.49
I17: 2 | J17: =N16 -> ₪ 496,530.49 | K17: =M17-L17 -> ₪ 3,479.89 | L17: =$J$13*J17 -> ₪ 1,485.59 | M17: =$J$14 -> ₪ 4,965.48 | N17: =J17-K17 -> ₪ 493,050.60
I18: 3 | J18: =N17 -> ₪ 493,050.60 | K18: ₪ 3,490.30 | L18: ₪ 1,475.18 | M18: ₪ 4,965.48 | N18: ₪ 489,560.30
I19: 4 | J19: ₪ 489,560.30 | K19: ₪ 3,500.74 | L19: ₪ 1,464.73 | M19: ₪ 4,965.48 | N19: ₪ 486,059.56
I20: 5 | J20: ₪ 486,059.56 | K20: ₪ 3,511.22 | L20: ₪ 1,454.26 | M20: ₪ 4,965.48 | N20: ₪ 482,548.34
I21: 6 | J21: ₪ 482,548.34 | K21: ₪ 3,521.72 | L21: ₪ 1,443.75 | M21: ₪ 4,965.48 | N21: ₪ 479,026.62
I22: 7 | J22: ₪ 479,026.62 | K22: ₪ 3,532.26 | L22: ₪ 1,433.22 | M22: ₪ 4,965.48 | N22: ₪ 475,494.36
I23: 8 | J23: ₪ 475,494.36 | K23: ₪ 3,542.83 | L23: ₪ 1,422.65 | M23: ₪ 4,965.48 | N23: ₪ 471,951.53
I24: 9 | J24: ₪ 471,951.53 | K24: ₪ 3,553.43 | L24: ₪ 1,412.05 | M24: ₪ 4,965.48 | N24: ₪ 468,398.10
I25: 10 | J25: ₪ 468,398.10 | K25: ₪ 3,564.06 | L25: ₪ 1,401.42 | M25: ₪ 4,965.48 | N25: ₪ 464,834.04
I26: 11 | J26: ₪ 464,834.04 | K26: ₪ 3,574.72 | L26: ₪ 1,390.75 | M26: ₪ 4,965.48 | N26: ₪ 461,259.32
I27: 12 | J27: ₪ 461,259.32 | K27: ₪ 3,585.42 | L27: ₪ 1,380.06 | M27: ₪ 4,965.48 | N27: ₪ 457,673.90
I28: 13 | J28: ₪ 457,673.90 | K28: ₪ 3,596.15 | L28: ₪ 1,369.33 | M28: ₪ 4,965.48 | N28: ₪ 454,077.76
I29: 14 | J29: ₪ 454,077.76 | K29: ₪ 3,606.90 | L29: ₪ 1,358.57 | M29: ₪ 4,965.48 | N29: ₪ 450,470.85
I30: 15 | J30: ₪ 450,470.85 | K30: ₪ 3,617.70 | L30: ₪ 1,347.78 | M30: ₪ 4,965.48 | N30: ₪ 446,853.16
I31: 16 | J31: ₪ 446,853.16 | K31: ₪ 3,628.52 | L31: ₪ 1,336.96 | M31: ₪ 4,965.48 | N31: ₪ 443,224.64
I32: 17 | J32: ₪ 443,224.64 | K32: ₪ 3,639.38 | L32: ₪ 1,326.10 | M32: ₪ 4,965.48 | N32: ₪ 439,585.26
I33: 18 | J33: ₪ 439,585.26 | K33: ₪ 3,650.27 | L33: ₪ 1,315.21 | M33: ₪ 4,965.48 | N33: ₪ 435,934.99
I34: 19 | J34: ₪ 435,934.99 | K34: ₪ 3,661.19 | L34: ₪ 1,304.29 | M34: ₪ 4,965.48 | N34: ₪ 432,273.81
I35: 20 | J35: ₪ 432,273.81 | K35: ₪ 3,672.14 | L35: ₪ 1,293.34 | M35: ₪ 4,965.48 | N35: ₪ 428,601.66
I36: 21 | J36: ₪ 428,601.66 | K36: ₪ 3,683.13 | L36: ₪ 1,282.35 | M36: ₪ 4,965.48 | N36: ₪ 424,918.54
I37: 22 | J37: ₪ 424,918.54 | K37: ₪ 3,694.15 | L37: ₪ 1,271.33 | M37: ₪ 4,965.48 | N37: ₪ 421,224.39
I38: 23 | J38: ₪ 421,224.39 | K38: ₪ 3,705.20 | L38: ₪ 1,260.28 | M38: ₪ 4,965.48 | N38: ₪ 417,519.19
I39: 24 | J39: ₪ 417,519.19 | K39: ₪ 3,716.29 | L39: ₪ 1,249.19 | M39: ₪ 4,965.48 | N39: ₪ 413,802.90
I40: 25 | J40: ₪ 413,802.90 | K40: ₪ 3,727.40 | L40: ₪ 1,238.07 | M40: ₪ 4,965.48 | N40: ₪ 410,075.50
I41: 26 | J41: ₪ 410,075.50 | K41: ₪ 3,738.56 | L41: ₪ 1,226.92 | M41: ₪ 4,965.48 | N41: ₪ 406,336.94
I42: 27 | J42: ₪ 406,336.94 | K42: ₪ 3,749.74 | L42: ₪ 1,215.73 | M42: ₪ 4,965.48 | N42: ₪ 402,587.20
I43: 28 | J43: ₪ 402,587.20 | K43: ₪ 3,760.96 | L43: ₪ 1,204.52 | M43: ₪ 4,965.48 | N43: ₪ 398,826.24
I44: 29 | J44: ₪ 398,826.24 | K44: ₪ 3,772.21 | L44: ₪ 1,193.26 | M44: ₪ 4,965.48 | N44: ₪ 395,054.02
I45: 30 | J45: ₪ 395,054.02 | K45: ₪ 3,783.50 | L45: ₪ 1,181.98 | M45: ₪ 4,965.48 | N45: ₪ 391,270.52
I46: 31 | J46: ₪ 391,270.52 | K46: ₪ 3,794.82 | L46: ₪ 1,170.66 | M46: ₪ 4,965.48 | N46: ₪ 387,475.70
I47: 32 | J47: ₪ 387,475.70 | K47: ₪ 3,806.17 | L47: ₪ 1,159.30 | M47: ₪ 4,965.48 | N47: ₪ 383,669.53
I48: 33 | J48: ₪ 383,669.53 | K48: ₪ 3,817.56 | L48: ₪ 1,147.92 | M48: ₪ 4,965.48 | N48: ₪ 379,851.97
I49: 34 | J49: ₪ 379,851.97 | K49: ₪ 3,828.98 | L49: ₪ 1,136.49 | M49: ₪ 4,965.48 | N49: ₪ 376,022.98
I50: 35 | J50: ₪ 376,022.98 | K50: ₪ 3,840.44 | L50: ₪ 1,125.04 | M50: ₪ 4,965.48 | N50: ₪ 372,182.54
I51: 36 | J51: ₪ 372,182.54 | K51: ₪ 3,851.93 | L51: ₪ 1,113.55 | M51: ₪ 4,965.48 | N51: ₪ 368,330.61
I52: 37 | J52: ₪ 368,330.61 | K52: ₪ 3,863.46 | L52: ₪ 1,102.02 | M52: ₪ 4,965.48 | N52: ₪ 364,467.16
I53: 38 | J53: ₪ 364,467.16 | K53: ₪ 3,875.01 | L53: ₪ 1,090.46 | M53: ₪ 4,965.48 | N53: ₪ 360,592.14
I54: 39 | J54: ₪ 360,592.14 | K54: ₪ 3,886.61 | L54: ₪ 1,078.87 | M54: ₪ 4,965.48 | N54: ₪ 356,705.53
I55: 40 | J55: ₪ 356,705.53 | K55: ₪ 3,898.24 | L55: ₪ 1,067.24 | M55: ₪ 4,965.48 | N55: ₪ 352,807.30
I56: 41 | J56: ₪ 352,807.30 | K56: ₪ 3,909.90 | L56: ₪ 1,055.58 | M56: ₪ 4,965.48 | N56: ₪ 348,897.40
I57: 42 | J57: ₪ 348,897.40 | K57: ₪ 3,921.60 | L57: ₪ 1,043.88 | M57: ₪ 4,965.48 | N57: ₪ 344,975.80
I58: 43 | J58: ₪ 344,975.80 | K58: ₪ 3,933.33 | L58: ₪ 1,032.15 | M58: ₪ 4,965.48 | N58: ₪ 341,042.47
I59: 44 | J59: ₪ 341,042.47 | K59: ₪ 3,945.10 | L59: ₪ 1,020.38 | M59: ₪ 4,965.48 | N59: ₪ 337,097.37
I60: 45 | J60: ₪ 337,097.37 | K60: ₪ 3,956.90 | L60: ₪ 1,008.57 | M60: ₪ 4,965.48 | N60: ₪ 333,140.47
I61: 46 | J61: ₪ 333,140.47 | K61: ₪ 3,968.74 | L61: ₪ 996.74 | M61: ₪ 4,965.48 | N61: ₪ 329,171.72
I62: 47 | J62: ₪ 329,171.72 | K62: ₪ 3,980.62 | L62: ₪ 984.86 | M62: ₪ 4,965.48 | N62: ₪ 325,191.11
I63: 48 | J63: ₪ 325,191.11 | K63: ₪ 3,992.53 | L63: ₪ 972.95 | M63: ₪ 4,965.48 | N63: ₪ 321,198.58
I64: 49 | J64: ₪ 321,198.58 | K64: ₪ 4,004.47 | L64: ₪ 961.01 | M64: ₪ 4,965.48 | N64: ₪ 317,194.11
I65: 50 | J65: ₪ 317,194.11 | K65: ₪ 4,016.45 | L65: ₪ 949.03 | M65: ₪ 4,965.48 | N65: ₪ 313,177.66
I66: 51 | J66: ₪ 313,177.66 | K66: ₪ 4,028.47 | L66: ₪ 937.01 | M66: ₪ 4,965.48 | N66: ₪ 309,149.19
I67: 52 | J67: ₪ 309,149.19 | K67: ₪ 4,040.52 | L67: ₪ 924.96 | M67: ₪ 4,965.48 | N67: ₪ 305,108.67
I68: 53 | J68: ₪ 305,108.67 | K68: ₪ 4,052.61 | L68: ₪ 912.87 | M68: ₪ 4,965.48 | N68: ₪ 301,056.06
I69: 54 | J69: ₪ 301,056.06 | K69: ₪ 4,064.74 | L69: ₪ 900.74 | M69: ₪ 4,965.48 | N69: ₪ 296,991.32
I70: 55 | J70: ₪ 296,991.32 | K70: ₪ 4,076.90 | L70: ₪ 888.58 | M70: ₪ 4,965.48 | N70: ₪ 292,914.42
I71: 56 | J71: ₪ 292,914.42 | K71: ₪ 4,089.10 | L71: ₪ 876.38 | M71: ₪ 4,965.48 | N71: ₪ 288,825.33
I72: 57 | J72: ₪ 288,825.33 | K72: ₪ 4,101.33 | L72: ₪ 864.15 | M72: ₪ 4,965.48 | N72: ₪ 284,724.00
I73: 58 | J73: ₪ 284,724.00 | K73: ₪ 4,113.60 | L73: ₪ 851.88 | M73: ₪ 4,965.48 | N73: ₪ 280,610.39
I74: 59 | J74: ₪ 280,610.39 | K74: ₪ 4,125.91 | L74: ₪ 839.57 | M74: ₪ 4,965.48 | N74: ₪ 276,484.49
I75: 60 | J75: ₪ 276,484.49 | K75: ₪ 4,138.25 | L75: ₪ 827.22 | M75: ₪ 4,965.48 | N75: ₪ 272,346.23
I76: 61 | J76: ₪ 272,346.23 | K76: ₪ 4,150.63 | L76: ₪ 814.84 | M76: ₪ 4,965.48 | N76: ₪ 268,195.60
I77: 62 | J77: ₪ 268,195.60 | K77: ₪ 4,163.05 | L77: ₪ 802.42 | M77: ₪ 4,965.48 | N77: ₪ 264,032.55
I78: 63 | J78: ₪ 264,032.55 | K78: ₪ 4,175.51 | L78: ₪ 789.97 | M78: ₪ 4,965.48 | N78: ₪ 259,857.04
I79: 64 | J79: ₪ 259,857.04 | K79: ₪ 4,188.00 | L79: ₪ 777.48 | M79: ₪ 4,965.48 | N79: ₪ 255,669.04
I80: 65 | J80: ₪ 255,669.04 | K80: ₪ 4,200.53 | L80: ₪ 764.95 | M80: ₪ 4,965.48 | N80: ₪ 251,468.50
I81: 66 | J81: ₪ 251,468.50 | K81: =M81-L81 -> ₪ 4,213.10 | L81: =$J$13*J81 -> ₪ 752.38 | M81: =$J$14 -> ₪ 4,965.48 | N81: =J81-K81 -> ₪ 247,255.41
I82: 67 | J82: =N81 -> ₪ 247,255.41 | K82: ₪ 4,225.70 | L82: ₪ 739.77 | M82: ₪ 4,965.48 | N82: ₪ 243,029.70
I83: 68 | J83: ₪ 243,029.70 | K83: ₪ 4,238.35 | L83: ₪ 727.13 | M83: ₪ 4,965.48 | N83: ₪ 238,791.35
I84: 69 | J84: ₪ 238,791.35 | K84: ₪ 4,251.03 | L84: ₪ 714.45 | M84: ₪ 4,965.48 | N84: ₪ 234,540.32
I85: 70 | J85: ₪ 234,540.32 | K85: ₪ 4,263.75 | L85: ₪ 701.73 | M85: ₪ 4,965.48 | N85: ₪ 230,276.58
I86: 71 | J86: ₪ 230,276.58 | K86: ₪ 4,276.50 | L86: ₪ 688.97 | M86: ₪ 4,965.48 | N86: ₪ 226,000.07
I87: 72 | J87: ₪ 226,000.07 | K87: ₪ 4,289.30 | L87: ₪ 676.18 | M87: ₪ 4,965.48 | N87: ₪ 221,710.77
I88: 73 | J88: ₪ 221,710.77 | K88: ₪ 4,302.13 | L88: ₪ 663.34 | M88: ₪ 4,965.48 | N88: ₪ 217,408.64
I89: 74 | J89: ₪ 217,408.64 | K89: ₪ 4,315.00 | L89: ₪ 650.47 | M89: ₪ 4,965.48 | N89: ₪ 213,093.64
I90: 75 | J90: ₪ 213,093.64 | K90: ₪ 4,327.91 | L90: ₪ 637.56 | M90: ₪ 4,965.48 | N90: ₪ 208,765.72
I91: 76 | J91: ₪ 208,765.72 | K91: ₪ 4,340.86 | L91: ₪ 624.61 | M91: ₪ 4,965.48 | N91: ₪ 204,424.86
I92: 77 | J92: ₪ 204,424.86 | K92: ₪ 4,353.85 | L92: ₪ 611.63 | M92: ₪ 4,965.48 | N92: ₪ 200,071.01
I93: 78 | J93: ₪ 200,071.01 | K93: ₪ 4,366.88 | L93: ₪ 598.60 | M93: ₪ 4,965.48 | N93: ₪ 195,704.13
I94: 79 | J94: ₪ 195,704.13 | K94: ₪ 4,379.94 | L94: ₪ 585.53 | M94: ₪ 4,965.48 | N94: ₪ 191,324.19
I95: 80 | J95: ₪ 191,324.19 | K95: ₪ 4,393.05 | L95: ₪ 572.43 | M95: ₪ 4,965.48 | N95: ₪ 186,931.14
I96: 81 | J96: ₪ 186,931.14 | K96: ₪ 4,406.19 | L96: ₪ 559.29 | M96: ₪ 4,965.48 | N96: ₪ 182,524.95
I97: 82 | J97: ₪ 182,524.95 | K97: ₪ 4,419.37 | L97: ₪ 546.10 | M97: ₪ 4,965.48 | N97: ₪ 178,105.57
I98: 83 | J98: ₪ 178,105.57 | K98: ₪ 4,432.60 | L98: ₪ 532.88 | M98: ₪ 4,965.48 | N98: ₪ 173,672.98
I99: 84 | J99: ₪ 173,672.98 | K99: ₪ 4,445.86 | L99: ₪ 519.62 | M99: ₪ 4,965.48 | N99: ₪ 169,227.12
I100: 85 | J100: ₪ 169,227.12 | K100: ₪ 4,459.16 | L100: ₪ 506.32 | M100: ₪ 4,965.48 | N100: ₪ 164,767.96
I101: 86 | J101: ₪ 164,767.96 | K101: ₪ 4,472.50 | L101: ₪ 492.98 | M101: ₪ 4,965.48 | N101: ₪ 160,295.46
I102: 87 | J102: ₪ 160,295.46 | K102: ₪ 4,485.88 | L102: ₪ 479.59 | M102: ₪ 4,965.48 | N102: ₪ 155,809.57
I103: 88 | J103: ₪ 155,809.57 | K103: ₪ 4,499.30 | L103: ₪ 466.17 | M103: ₪ 4,965.48 | N103: ₪ 151,310.27
I104: 89 | J104: ₪ 151,310.27 | K104: ₪ 4,512.77 | L104: ₪ 452.71 | M104: ₪ 4,965.48 | N104: ₪ 146,797.50
I105: 90 | J105: ₪ 146,797.50 | K105: ₪ 4,526.27 | L105: ₪ 439.21 | M105: ₪ 4,965.48 | N105: ₪ 142,271.23
I106: 91 | J106: ₪ 142,271.23 | K106: ₪ 4,539.81 | L106: ₪ 425.67 | M106: ₪ 4,965.48 | N106: ₪ 137,731.42
I107: 92 | J107: ₪ 137,731.42 | K107: ₪ 4,553.39 | L107: ₪ 412.08 | M107: ₪ 4,965.48 | N107: ₪ 133,178.03
I108: 93 | J108: ₪ 133,178.03 | K108: ₪ 4,567.02 | L108: ₪ 398.46 | M108: ₪ 4,965.48 | N108: ₪ 128,611.01
I109: 94 | J109: ₪ 128,611.01 | K109: ₪ 4,580.68 | L109: ₪ 384.80 | M109: ₪ 4,965.48 | N109: ₪ 124,030.33
I110: 95 | J110: ₪ 124,030.33 | K110: ₪ 4,594.39 | L110: ₪ 371.09 | M110: ₪ 4,965.48 | N110: ₪ 119,435.94
I111: 96 | J111: ₪ 119,435.94 | K111: ₪ 4,608.13 | L111: ₪ 357.34 | M111: ₪ 4,965.48 | N111: ₪ 114,827.81
I112: 97 | J112: ₪ 114,827.81 | K112: ₪ 4,621.92 | L112: ₪ 343.56 | M112: ₪ 4,965.48 | N112: ₪ 110,205.89
I113: 98 | J113: ₪ 110,205.89 | K113: ₪ 4,635.75 | L113: ₪ 329.73 | M113: ₪ 4,965.48 | N113: ₪ 105,570.14
I114: 99 | J114: ₪ 105,570.14 | K114: ₪ 4,649.62 | L114: ₪ 315.86 | M114: ₪ 4,965.48 | N114: ₪ 100,920.53
I115: 100 | J115: ₪ 100,920.53 | K115: ₪ 4,663.53 | L115: ₪ 301.95 | M115: ₪ 4,965.48 | N115: ₪ 96,257.00
I116: 101 | J116: ₪ 96,257.00 | K116: ₪ 4,677.48 | L116: ₪ 287.99 | M116: ₪ 4,965.48 | N116: ₪ 91,579.51
I117: 102 | J117: ₪ 91,579.51 | K117: ₪ 4,691.48 | L117: ₪ 274.00 | M117: ₪ 4,965.48 | N117: ₪ 86,888.04
I118: 103 | J118: ₪ 86,888.04 | K118: ₪ 4,705.51 | L118: ₪ 259.96 | M118: ₪ 4,965.48 | N118: ₪ 82,182.52
I119: 104 | J119: ₪ 82,182.52 | K119: ₪ 4,719.59 | L119: ₪ 245.89 | M119: ₪ 4,965.48 | N119: ₪ 77,462.93
I120: 105 | J120: ₪ 77,462.93 | K120: ₪ 4,733.71 | L120: ₪ 231.76 | M120: ₪ 4,965.48 | N120: ₪ 72,729.22
I121: 106 | J121: ₪ 72,729.22 | K121: ₪ 4,747.88 | L121: ₪ 217.60 | M121: ₪ 4,965.48 | N121: ₪ 67,981.34
I122: 107 | J122: ₪ 67,981.34 | K122: ₪ 4,762.08 | L122: ₪ 203.40 | M122: ₪ 4,965.48 | N122: ₪ 63,219.26
I123: 108 | J123: ₪ 63,219.26 | K123: ₪ 4,776.33 | L123: ₪ 189.15 | M123: ₪ 4,965.48 | N123: ₪ 58,442.93
I124: 109 | J124: ₪ 58,442.93 | K124: ₪ 4,790.62 | L124: ₪ 174.86 | M124: ₪ 4,965.48 | N124: ₪ 53,652.31
I125: 110 | J125: ₪ 53,652.31 | K125: ₪ 4,804.95 | L125: ₪ 160.52 | M125: ₪ 4,965.48 | N125: ₪ 48,847.36
I126: 111 | J126: ₪ 48,847.36 | K126: ₪ 4,819.33 | L126: ₪ 146.15 | M126: ₪ 4,965.48 | N126: ₪ 44,028.03
I127: 112 | J127: ₪ 44,028.03 | K127: ₪ 4,833.75 | L127: ₪ 131.73 | M127: ₪ 4,965.48 | N127: ₪ 39,194.28
I128: 113 | J128: ₪ 39,194.28 | K128: ₪ 4,848.21 | L128: ₪ 117.27 | M128: ₪ 4,965.48 | N128: ₪ 34,346.07
I129: 114 | J129: ₪ 34,346.07 | K129: ₪ 4,862.72 | L129: ₪ 102.76 | M129: ₪ 4,965.48 | N129: ₪ 29,483.35
I130: 115 | J130: ₪ 29,483.35 | K130: ₪ 4,877.27 | L130: ₪ 88.21 | M130: ₪ 4,965.48 | N130: ₪ 24,606.09
I131: 116 | J131: ₪ 24,606.09 | K131: ₪ 4,891.86 | L131: ₪ 73.62 | M131: ₪ 4,965.48 | N131: ₪ 19,714.23
I132: 117 | J132: ₪ 19,714.23 | K132: ₪ 4,906.49 | L132: ₪ 58.98 | M132: ₪ 4,965.48 | N132: ₪ 14,807.74
I133: 118 | J133: ₪ 14,807.74 | K133: ₪ 4,921.17 | L133: ₪ 44.30 | M133: ₪ 4,965.48 | N133: ₪ 9,886.56
I134: 119 | J134: ₪ 9,886.56 | K134: ₪ 4,935.90 | L134: ₪ 29.58 | M134: ₪ 4,965.48 | N134: ₪ 4,950.67
I135: 120 | J135: ₪ 4,950.67 | K135: ₪ 4,950.67 | L135: ₪ 14.81 | M135: ₪ 4,965.48 | N135: ₪ 0.00
J137: סעיף ב | K137: =L126 -> 146.15
F144: שאלה 17 | I144: שושי לוותה סכום של 40,000 ש"ח לתקופה של שנה בריבית שנתית בשיעור של 12% מחושבת חודשית. ההלוואה תוחזר בתשלומים סוף חודשיים שווים. בעקבות בקשתה של שושי הסכים מנהל הבנק לאפשר לה לשלם רק החל מסוף החודש החמישי (במקום מסוף החודש הראשון) מועד תום ההלוואה נותר כשהיה. חשב מה גובה התשלום החודשי של שושי?
J150: 40000 | K150: PV0 | M150: 12.00%
J151: =M150/M151 -> 1.00% | K151: R | M151: 12
G152: =J152*8 -> ₪ -43,518.99 | J152: =PMT(J151,J154,J155,,) -> ₪ -5,439.87 | K152: PMT
J153: 0 | K153: FV
J154: 8 | K154: N | L154: 4
J155: =FV(J151,L154,,-J150) -> ₪ 41,624.16 | K155: FV4
F165: שאלה 18 | I165: נלקחה הלוואה בגובה 80,000 ש"ח אשר תוחזר על פי לוח סילוקין רגיל (תשלומי קרן שווים). הריבית האפקטיבית השנתית הינה 6.16%. ההלוואה תוחזר בהחזרים חודשיים שווים וזאת למשך 10 שנים. מצא, מהו התשלום על חשבון הקרן בתשלום ה-44
I171: נתונים:
I172: הלוואה | J172: 80,000 | K172: PV | M172: 6.16%
I173: חודשים | J173: =10*12 -> 120 | K173: n | M173: 12
I174: ריבית | J174: =(1+M172)^(1/12)-1 -> 0.50% | K174: r
J175: =J172/J173 -> ₪ 666.67 | K175: החזר קרן קבוע
I176: מספר תקבול | J176: יתרת הקרן בתחילת תקופה | K176: תשלום ע"ח קרן | L176: תשלום ע"ח ריבית | M176: סך הכל תשלום | N176: יתרת הקרן בסוף התקופה
I177: 1 | J177: =J172 -> ₪ 80,000.00 | K177: =$J$175 -> ₪ 666.67 | L177: =$J$174*J177 -> ₪ 399.51 | M177: =K177+L177 -> ₪ 1,066.18 | N177: =J177-K177 -> ₪ 79,333.33
I178: 2 | J178: =N177 -> ₪ 79,333.33 | K178: =$J$175 -> ₪ 666.67 | L178: =$J$174*J178 -> ₪ 396.18 | M178: =K178+L178 -> ₪ 1,062.85 | N178: =J178-K178 -> ₪ 78,666.67
I179: 3 | J179: =N178 -> ₪ 78,666.67 | K179: ₪ 666.67 | L179: ₪ 392.85 | M179: ₪ 1,059.52 | N179: ₪ 78,000.00
I180: 4 | J180: ₪ 78,000.00 | K180: ₪ 666.67 | L180: ₪ 389.52 | M180: ₪ 1,056.19 | N180: ₪ 77,333.33
I181: 5 | J181: ₪ 77,333.33 | K181: ₪ 666.67 | L181: ₪ 386.19 | M181: ₪ 1,052.86 | N181: ₪ 76,666.67
I182: 6 | J182: ₪ 76,666.67 | K182: ₪ 666.67 | L182: ₪ 382.86 | M182: ₪ 1,049.53 | N182: ₪ 76,000.00
I183: 7 | J183: ₪ 76,000.00 | K183: ₪ 666.67 | L183: ₪ 379.53 | M183: ₪ 1,046.20 | N183: ₪ 75,333.33
I184: 8 | J184: ₪ 75,333.33 | K184: ₪ 666.67 | L184: ₪ 376.20 | M184: ₪ 1,042.87 | N184: ₪ 74,666.67
I185: 9 | J185: ₪ 74,666.67 | K185: ₪ 666.67 | L185: ₪ 372.88 | M185: ₪ 1,039.54 | N185: ₪ 74,000.00
I186: 10 | J186: ₪ 74,000.00 | K186: ₪ 666.67 | L186: ₪ 369.55 | M186: ₪ 1,036.21 | N186: ₪ 73,333.33
I187: 11 | J187: ₪ 73,333.33 | K187: ₪ 666.67 | L187: ₪ 366.22 | M187: ₪ 1,032.88 | N187: ₪ 72,666.67
I188: 12 | J188: ₪ 72,666.67 | K188: ₪ 666.67 | L188: ₪ 362.89 | M188: ₪ 1,029.55 | N188: ₪ 72,000.00
I189: 13 | J189: ₪ 72,000.00 | K189: ₪ 666.67 | L189: ₪ 359.56 | M189: ₪ 1,026.22 | N189: ₪ 71,333.33
I190: 14 | J190: ₪ 71,333.33 | K190: ₪ 666.67 | L190: ₪ 356.23 | M190: ₪ 1,022.90 | N190: ₪ 70,666.67
I191: 15 | J191: ₪ 70,666.67 | K191: ₪ 666.67 | L191: ₪ 352.90 | M191: ₪ 1,019.57 | N191: ₪ 70,000.00
I192: 16 | J192: ₪ 70,000.00 | K192: ₪ 666.67 | L192: ₪ 349.57 | M192: ₪ 1,016.24 | N192: ₪ 69,333.33
I193: 17 | J193: ₪ 69,333.33 | K193: ₪ 666.67 | L193: ₪ 346.24 | M193: ₪ 1,012.91 | N193: ₪ 68,666.67
I194: 18 | J194: ₪ 68,666.67 | K194: ₪ 666.67 | L194: ₪ 342.91 | M194: ₪ 1,009.58 | N194: ₪ 68,000.00
I195: 19 | J195: ₪ 68,000.00 | K195: ₪ 666.67 | L195: ₪ 339.58 | M195: ₪ 1,006.25 | N195: ₪ 67,333.33
I196: 20 | J196: ₪ 67,333.33 | K196: ₪ 666.67 | L196: ₪ 336.25 | M196: ₪ 1,002.92 | N196: ₪ 66,666.67
I197: 21 | J197: ₪ 66,666.67 | K197: ₪ 666.67 | L197: ₪ 332.92 | M197: ₪ 999.59 | N197: ₪ 66,000.00
I198: 22 | J198: ₪ 66,000.00 | K198: ₪ 666.67 | L198: ₪ 329.59 | M198: ₪ 996.26 | N198: ₪ 65,333.33
I199: 23 | J199: ₪ 65,333.33 | K199: ₪ 666.67 | L199: ₪ 326.27 | M199: ₪ 992.93 | N199: ₪ 64,666.67
I200: 24 | J200: ₪ 64,666.67 | K200: ₪ 666.67 | L200: ₪ 322.94 | M200: ₪ 989.60 | N200: ₪ 64,000.00
I201: 25 | J201: ₪ 64,000.00 | K201: ₪ 666.67 | L201: ₪ 319.61 | M201: ₪ 986.27 | N201: ₪ 63,333.33
I202: 26 | J202: ₪ 63,333.33 | K202: ₪ 666.67 | L202: ₪ 316.28 | M202: ₪ 982.94 | N202: ₪ 62,666.67
I203: 27 | J203: ₪ 62,666.67 | K203: ₪ 666.67 | L203: ₪ 312.95 | M203: ₪ 979.62 | N203: ₪ 62,000.00
I204: 28 | J204: ₪ 62,000.00 | K204: ₪ 666.67 | L204: ₪ 309.62 | M204: ₪ 976.29 | N204: ₪ 61,333.33
I205: 29 | J205: ₪ 61,333.33 | K205: ₪ 666.67 | L205: ₪ 306.29 | M205: ₪ 972.96 | N205: ₪ 60,666.67
I206: 30 | J206: ₪ 60,666.67 | K206: ₪ 666.67 | L206: ₪ 302.96 | M206: ₪ 969.63 | N206: ₪ 60,000.00
I207: 31 | J207: ₪ 60,000.00 | K207: ₪ 666.67 | L207: ₪ 299.63 | M207: ₪ 966.30 | N207: ₪ 59,333.33
I208: 32 | J208: ₪ 59,333.33 | K208: ₪ 666.67 | L208: ₪ 296.30 | M208: ₪ 962.97 | N208: ₪ 58,666.67
I209: 33 | J209: ₪ 58,666.67 | K209: ₪ 666.67 | L209: ₪ 292.97 | M209: ₪ 959.64 | N209: ₪ 58,000.00
I210: 34 | J210: ₪ 58,000.00 | K210: ₪ 666.67 | L210: ₪ 289.64 | M210: ₪ 956.31 | N210: ₪ 57,333.33
I211: 35 | J211: ₪ 57,333.33 | K211: ₪ 666.67 | L211: ₪ 286.31 | M211: ₪ 952.98 | N211: ₪ 56,666.67
I212: 36 | J212: ₪ 56,666.67 | K212: ₪ 666.67 | L212: ₪ 282.99 | M212: ₪ 949.65 | N212: ₪ 56,000.00
I213: 37 | J213: ₪ 56,000.00 | K213: ₪ 666.67 | L213: ₪ 279.66 | M213: ₪ 946.32 | N213: ₪ 55,333.33
I214: 38 | J214: ₪ 55,333.33 | K214: ₪ 666.67 | L214: ₪ 276.33 | M214: ₪ 942.99 | N214: ₪ 54,666.67
I215: 39 | J215: ₪ 54,666.67 | K215: ₪ 666.67 | L215: ₪ 273.00 | M215: ₪ 939.66 | N215: ₪ 54,000.00
I216: 40 | J216: ₪ 54,000.00 | K216: ₪ 666.67 | L216: ₪ 269.67 | M216: ₪ 936.34 | N216: ₪ 53,333.33
I217: 41 | J217: ₪ 53,333.33 | K217: ₪ 666.67 | L217: ₪ 266.34 | M217: ₪ 933.01 | N217: ₪ 52,666.67
I218: 42 | J218: ₪ 52,666.67 | K218: ₪ 666.67 | L218: ₪ 263.01 | M218: ₪ 929.68 | N218: ₪ 52,000.00
I219: 43 | J219: ₪ 52,000.00 | K219: ₪ 666.67 | L219: ₪ 259.68 | M219: ₪ 926.35 | N219: ₪ 51,333.33
I220: 44 | J220: ₪ 51,333.33 | K220: ₪ 666.67 | L220: ₪ 256.35 | M220: ₪ 923.02 | N220: ₪ 50,666.67
I221: 45 | J221: ₪ 50,666.67 | K221: ₪ 666.67 | L221: ₪ 253.02 | M221: ₪ 919.69 | N221: ₪ 50,000.00
I222: 46 | J222: ₪ 50,000.00 | K222: ₪ 666.67 | L222: ₪ 249.69 | M222: ₪ 916.36 | N222: ₪ 49,333.33
I223: 47 | J223: ₪ 49,333.33 | K223: ₪ 666.67 | L223: ₪ 246.36 | M223: ₪ 913.03 | N223: ₪ 48,666.67
I224: 48 | J224: ₪ 48,666.67 | K224: ₪ 666.67 | L224: ₪ 243.03 | M224: ₪ 909.70 | N224: ₪ 48,000.00
I225: 49 | J225: ₪ 48,000.00 | K225: ₪ 666.67 | L225: ₪ 239.71 | M225: ₪ 906.37 | N225: ₪ 47,333.33
I226: 50 | J226: ₪ 47,333.33 | K226: ₪ 666.67 | L226: ₪ 236.38 | M226: ₪ 903.04 | N226: ₪ 46,666.67
I227: 51 | J227: ₪ 46,666.67 | K227: ₪ 666.67 | L227: ₪ 233.05 | M227: ₪ 899.71 | N227: ₪ 46,000.00
I228: 52 | J228: ₪ 46,000.00 | K228: ₪ 666.67 | L228: ₪ 229.72 | M228: ₪ 896.38 | N228: ₪ 45,333.33
I229: 53 | J229: ₪ 45,333.33 | K229: ₪ 666.67 | L229: ₪ 226.39 | M229: ₪ 893.06 | N229: ₪ 44,666.67
I230: 54 | J230: ₪ 44,666.67 | K230: ₪ 666.67 | L230: ₪ 223.06 | M230: ₪ 889.73 | N230: ₪ 44,000.00
I231: 55 | J231: ₪ 44,000.00 | K231: ₪ 666.67 | L231: ₪ 219.73 | M231: ₪ 886.40 | N231: ₪ 43,333.33
I232: 56 | J232: ₪ 43,333.33 | K232: ₪ 666.67 | L232: ₪ 216.40 | M232: ₪ 883.07 | N232: ₪ 42,666.67
I233: 57 | J233: ₪ 42,666.67 | K233: ₪ 666.67 | L233: ₪ 213.07 | M233: ₪ 879.74 | N233: ₪ 42,000.00
... 91 more rows
